Workbook

Sheet Gesamtrangliste
Q1: Breaks gesamt: | W1: =Y1+AA1+AC1+AE1+AG1+AI1+AK1+AM1+AO1+AQ1+AS1+AU1+AW1+AY1+BA1 -> 286 | X1: Breaks 30 + | Y1: 21 | Z1: Breaks 30+ | AA1: 32 | AB1: Breaks 30 + | AC1: 23 | AD1: Breaks 30 + | AE1: 18 | AF1: Breaks 30 + | AG1: 12 | AH1: Breaks 30 + | AI1: 21 | AJ1: Breaks 30 + | AK1: 20 | AL1: Breaks 30 + | AM1: 24 | AN1: Breaks 30 + | AO1: 26 | AP1: Breaks 30 + | AQ1: 28 | AR1: Breaks 30 + | AS1: 8 | AT1: Breaks 30 + | AU1: 22 | AV1: Breaks 30 + | AX1: Breaks 30 + | AY1: 15 | BA1: 16
A2: Platz | B2: ↓↑ | C2: Pl.alt | D2: Spielername | E2: Total | F2: -1 | G2: St.-Erg. | H2: HB | I2: T1 | J2: T2 | K2: T3 | L2: T4 | M2: T5 | N2: T6 | O2: T7 | P2: T8 | Q2: T9 | R2: T10 | S2: T11 | T2: T12 | U2: T13 | V2: T14 | W2: CP | X2: Spieler | Y2: T 1 | Z2: Spieler | AA2: T 2 | AB2: Spieler | AC2: T 3 | AD2: Spieler | AE2: T 4 | AF2: Spieler | AG2: T 5 | AH2: Spieler | AI2: T 6 | AJ2: Spieler | AK2: T 7 | AL2: Spieler | AM2: T 8 | AN2: Spieler | AO2: T 9 | AP2: Spieler | AQ2: T10 | AR2: Spieler | AS2: T11 | AT2: Spieler | AU2: T12 | AV2: Spieler | AW2: T13 | AX2: Spieler | AY2: T14
A3: 1 | B3: =IF(C3="","",C3-A3) -> 0 | C3: 1 | D3: Marco Weber | E3: =I3+J3+K3+L3+M3+N3+O3+P3+Q3+R3+S3+T3+U3+V3+W3 -> 4065.0384 | F3: =E3-G3 -> 4065.0384 | G3: =INDEX(I3:W3,MATCH(LARGE(I3:W3,COUNTIF(I3:W3,">="&0)),I3:W3,0)) -> 0 | H3: 78 | I3: =SUMIF($X$3:$X$59,$D3,$Y$3:$Y$59) -> 355 | J3: =SUMIF($Z$3:$Z$42,$D3,$AA$3:$AA$42) -> 280 | K3: =SUMIF($AB$3:$AB$42,$D3,$AC$3:$AC$42) -> 440.0039 | L3: =SUMIF($AD$3:$AD$42,$D3,$AE$3:$AE$42) -> 375.0035 | M3: =SUMIF($AF$3:$AF$42,$D3,$AG$3:$AG$42) -> 345.004 | N3: =SUMIF($AH$3:$AH$42,$D3,$AI$3:$AI$42) -> 195.0038 | O3: =SUMIF($AJ$3:$AJ$42,$D3,$AK$3:$AK$42) -> 195.0037 | P3: =SUMIF($AL$3:$AL$42,$D3,$AM$3:$AM$42) -> 335.0037 | Q3: =SUMIF(AN$3:AN$42,$D3,AO$3:AO$42) -> 345.0039 | R3: =SUMIF(AP$3:AP$42,$D3,AQ$3:AQ$42) -> 355.004 | S3: =SUMIF(AR$3:AR$42,$D3,AS$3:AS$42) -> 350.004 | T3: =SUMIF(AT$3:AT$42,$D3,AU$3:AU$42) -> 280.0039 | U3: =SUMIF(AV$3:AV$42,$D3,AW$3:AW$42) -> 0 | V3: =SUMIF(AX$3:AX$42,$D3,AY$3:AY$42) -> 215 | W3: =SUMIF(AZ$3:AZ$42,$D3,BA$3:BA$42) -> 0 | X3: Marco Weber | Y3: 355 | Z3: Marco Weber | AA3: 280 | AB3: Marco Weber | AC3: 440.0039 | AD3: Florian Schmidt | AE3: 430.0037 | AF3: Rene Scheurer | AG3: 435.0033 | AH3: Florian Schmidt | AI3: 430.0034 | AJ3: Florian Schmidt | AK3: 340.0038 | AL3: Marco Weber | AM3: 335.0037 | AN3: Marco Weber | AO3: 345.0039 | AP3: Marco Weber | AQ3: 355.004 | AR3: Marco Weber | AS3: 350.004 | AT3: Mohanad Al Obaidi | AU3: 440.0031 | AV3: Andreas Fandrei | AW3: 220 | AX3: David Gärtner | AY3: 440
A4: 2 | B4: 1 | C4: 3 | D4: David Gärtner | E4: 3035.0336 | F4: 3035.0336 | G4: 0 | H4: 71 | I4: 295 | J4: 90 | K4: 270.0038 | L4: 335.0034 | M4: 155.0039 | N4: 150.0035 | O4: 240.0039 | P4: 300.0038 | Q4: 185.0037 | R4: 245.0038 | S4: 0 | T4: 330.0038 | U4: 0 | V4: 440 | W4: 0 | X4: David Gärtner | Y4: 295 | Z4: Tino Delling | AA4: 230 | AB4: Florian Schmidt | AC4: 380 | AD4: Marco Weber | AE4: 375.0035 | AF4: Ammar Al Ani | AG4: 375.0012 | AH4: Magnus Suttner | AI4: 370.0025 | AJ4: Paul N. Schmidt | AK4: 280.004 | AL4: David Gärtner | AM4: 300.0038 | AN4: Michael Haferung | AO4: 285.0024 | AP4: Florian Schmidt | AQ4: 300.0037 | AR4: Ali Kirim | AS4: 295.0032 | AT4: Ammar Al Ani | AU4: 380.0036 | AV4: Aaron Bocksberger | AW4: 170 | AX4: Mohanad Al Obaidi | AY4: 385
A5: 3 | B5: -1 | C5: 2 | D5: Florian Schmidt | E5: 2750.0337 | F5: 2750.0337 | G5: 0 | H5: 70 | I5: 0 | J5: 0 | K5: 380 | L5: 430.0037 | M5: 210.0038 | N5: 430.0034 | O5: 340.0038 | P5: 245.0039 | Q5: 150.0038 | R5: 300.0037 | S5: 200.0039 | T5: 65.0037 | U5: 0 | V5: 0 | W5: 0 | X5: Thomas Krause | Y5: 230 | Z5: Daud Ilyas Ghauri | AA5: 190 | AB5: Magnus Suttner | AC5: 325 | AD5: David Gärtner | AE5: 335.0034 | AF5: Marco Weber | AG5: 345.004 | AH5: Ammar Al Ani | AI5: 335.0033 | AJ5: David Gärtner | AK5: 240.0039 | AL5: Florian Schmidt | AM5: 245.0039 | AN5: Aaron Bocksberger | AO5: 240.0031 | AP5: David Gärtner | AQ5: 245.0038 | AR5: Hans Bergmann | AS5: 230.0029 | AT5: David Gärtner | AU5: 330.0038 | AV5: Michael Seidel | AW5: 165 | AX5: Ammar Al Ani | AY5: 325
A6: 4 | B6: 0 | C6: 4 | D6: Ammar Al Ani | E6: 2005.0174 | F6: 2005.0174 | G6: 0 | H6: 46 | I6: 0 | J6: 0 | K6: 0 | L6: 270.0014 | M6: 375.0012 | N6: 335.0033 | O6: 0 | P6: 0 | Q6: 110.004 | R6: 210.0039 | S6: 0 | T6: 380.0036 | U6: 0 | V6: 325 | W6: 0 | X6: Paul N. Schmidt | Y6: 200 | Z6: Thomas Krause | AA6: 165 | AB6: David Gärtner | AC6: 270.0038 | AD6: Ammar Al Ani | AE6: 270.0014 | AF6: Frank Hofmann | AG6: 260.0011 | AH6: Moritz Thomas | AI6: 265.001 | AJ6: Marco Weber | AK6: 195.0037 | AL6: Moritz Thomas | AM6: 205.0033 | AN6: David Gärtner | AO6: 185.0037 | AP6: Ammar Al Ani | AQ6: 210.0039 | AR6: Florian Schmidt | AS6: 200.0039 | AT6: Marco Weber | AU6: 280.0039 | AV6: Ulrich Löffel | AW6: 140 | AX6: Marko Straßburger | AY6: 255
A7: 5 | B7: 0 | C7: 5 | D7: Aaron Bocksberger | E7: 1675.0226 | F7: 1675.0226 | G7: 0 | H7: 38 | I7: 95 | J7: 0 | K7: 215.0016 | L7: 0 | M7: 135.0028 | N7: 70.0028 | O7: 75.0029 | P7: 50.0032 | Q7: 240.0031 | R7: 90.0027 | S7: 135 | T7: 200.0035 | U7: 170 | V7: 200 | W7: 0 | X7: Sylvio Fischer | Y7: 145 | Z7: Paul N. Schmidt | AA7: 130 | AB7: Aaron Bocksberger | AC7: 215.0016 | AD7: Rene Scheurer | AE7: 215.0009 | AF7: Florian Schmidt | AG7: 210.0038 | AH7: Rene Scheurer | AI7: 200.0039 | AJ7: Andreas Hartung | AK7: 140.0026 | AL7: Rene Scheurer | AM7: 155.004 | AN7: Florian Schmidt | AO7: 150.0038 | AP7: Paul N. Schmidt | AQ7: 155.0034 | AR7: Jens Künitz | AS7: 135.0028 | AT7: Tino Delling | AU7: 205.0022 | AV7: Thomas Fritz | AW7: 90 | AX7: Marco Weber | AY7: 215
A8: 6 | B8: 0 | C8: 6 | D8: Sylvio Fischer | E8: 1410.0327 | F8: 1410.0327 | G8: 0 | H8: 30 | I8: 145 | J8: 55 | K8: 130.004 | L8: 130.0038 | M8: 130.0037 | N8: 120.004 | O8: 105.0035 | P8: 80.0035 | Q8: 140.0026 | R8: 90.0036 | S8: 0 | T8: 135.004 | U8: 0 | V8: 150 | W8: 0 | X8: Christopher Jaritz | Y8: 145 | Z8: Christopher Jaritz | AA8: 110 | AB8: Paul N. Schmidt | AC8: 210.0037 | AD8: Thomas Brünner | AE8: 210.0032 | AF8: Thomas Krause | AG8: 200.0035 | AH8: Paul N. Schmidt | AI8: 200.0037 | AJ8: Andre Jung | AK8: 135.0032 | AL8: Thomas Krause | AM8: 140.0034 | AN8: Sylvio Fischer | AO8: 140.0026 | AP8: Thomas Brünner | AQ8: 155.0028 | AR8: Aaron Bocksberger | AS8: 135 | AT8: Aaron Bocksberger | AU8: 200.0035 | AV8: Jens Künitz | AW8: 85 | AX8: Jens Künitz | AY8: 205
A9: 7 | B9: 0 | C9: 7 | D9: Paul N. Schmidt | E9: 1320.0148 | F9: 1320.0148 | G9: 0 | H9: 84 | I9: 200 | J9: 130 | K9: 210.0037 | L9: 0 | M9: 0 | N9: 200.0037 | O9: 280.004 | P9: 0 | Q9: 0 | R9: 155.0034 | S9: 0 | T9: 0 | U9: 0 | V9: 145 | W9: 0 | X9: Jörg Bonitz | Y9: 130 | Z9: Marko Straßburger | AA9: 90 | AB9: Christoph Richter | AC9: 195.0017 | AD9: Thimo Troks | AE9: 210.0031 | AF9: Tino Delling | AG9: 195.0022 | AH9: Marco Weber | AI9: 195.0038 | AJ9: Ayhan Ekiz | AK9: 135.0019 | AL9: Tino Delling | AM9: 135.0031 | AN9: Heiko Funk | AO9: 130.0035 | AP9: Tino Delling | AQ9: 150.0029 | AR9: Michael Seidel | AS9: 125.0021 | AT9: Michael Seidel | AU9: 200.0032 | AV9: Magnus Suttner | AW9: 85 | AX9: Aaron Bocksberger | AY9: 200
A10: 8 | B10: 1 | C10: 9 | D10: Andreas Hartung | E10: 1270.0244 | F10: 1270.0244 | G10: 0 | H10: 33 | I10: 125 | J10: 65 | K10: 135.0035 | L10: 65.0039 | M10: 130.003 | N10: 60.0014 | O10: 140.0026 | P10: 90.0025 | Q10: 105.0022 | R10: 80.0026 | S10: 0 | T10: 125.0027 | U10: 0 | V10: 150 | W10: 0 | X10: Andreas Hartung | Y10: 125 | Z10: David Gärtner | AA10: 90 | AB10: Thomas Brünner | AC10: 190.001 | AD10: Marko Straßburger | AE10: 200.0028 | AF10: Heiko Funk | AG10: 190.0013 | AH10: Robert Ochmann | AI10: 195.0015 | AJ10: Thomas Kraege | AK10: 120.0021 | AL10: Sven Ohlenroth | AM10: 135.0026 | AN10: Ulrich Löffel | AO10: 130.0028 | AP10: Mohanad Al Obaidi | AQ10: 145.0031 | AR10: Felix Rotsching | AS10: 115 | AT10: Magnus Suttner | AU10: 195.0019 | AV10: Patrick Schicker | AW10: 85 | AX10: Heiko Funk | AY10: 195
A11: 9 | B11: -1 | C11: 8 | D11: Rene Scheurer | E11: 1125.0121 | F11: 1125.0121 | G11: 0 | H11: 50 | I11: 55 | J11: 65 | K11: 0 | L11: 215.0009 | M11: 435.0033 | N11: 200.0039 | O11: 0 | P11: 155.004 | Q11: 0 | R11: 0 | S11: 0 | T11: 0 | U11: 0 | V11: 0 | W11: 0 | X11: Andreas Hollin | Y11: 110 | Z11: Rene Scheurer | AA11: 65 | AB11: Heiko Funk | AC11: 150.0036 | AD11: Michael Haferung | AE11: 140.0026 | AF11: David Gärtner | AG11: 155.0039 | AH11: Thomas Krause | AI11: 150.0036 | AJ11: Sven Ohlenroth | AK11: 115.0028 | AL11: Till Fritzsche | AM11: 110.0027 | AN11: Ammar Al Ani | AO11: 110.004 | AP11: Thomas Krause | AQ11: 100.0035 | AR11: Magnus Suttner | AS11: 110.0037 | AT11: Sylvio Fischer | AU11: 135.004 | AV11: Hans Bergmann | AW11: 45 | AX11: Sylvio Fischer | AY11: 150
A12: 10 | B12: 0 | C12: 10 | D12: Magnus Suttner | E12: 1085.0081 | F12: 1085.0081 | G12: 0 | H12: 39 | I12: 0 | J12: 0 | K12: 325 | L12: 0 | M12: 0 | N12: 370.0025 | O12: 0 | P12: 0 | Q12: 0 | R12: 0 | S12: 110.0037 | T12: 195.0019 | U12: 85 | V12: 0 | W12: 0 | X12: Marko Straßburger | Y12: 105 | Z12: Andreas Hartung | AA12: 65 | AB12: Christopher Jaritz | AC12: 145.0011 | AD12: Florian Tetzner | AE12: 140.0015 | AF12: Ronny Rejke | AG12: 155.0018 | AH12: David Gärtner | AI12: 150.0035 | AJ12: Sylvio Fischer | AK12: 105.0035 | AL12: Marko Straßburger | AM12: 105.0028 | AN12: Andreas Hartung | AO12: 105.0022 | AP12: Sylvio Fischer | AQ12: 90.0036 | AR12: Andreas Lositza | AS12: 105.0036 | AT12: Moritz Thomas | AU12: 135.0029 | AV12: Mario Beetz | AW12: 40 | AX12: Andreas Hartung | AY12: 150
A13: 11 | B13: 0 | C13: 11 | D13: Thomas Krause | E13: 1080.0176 | F13: 1080.0176 | G13: 0 | H13: 47 | I13: 230 | J13: 165 | K13: 0 | L13: 0 | M13: 200.0035 | N13: 150.0036 | O13: 95.0036 | P13: 140.0034 | Q13: 0 | R13: 100.0035 | S13: 0 | T13: 0 | U13: 0 | V13: 0 | W13: 0 | X13: Aaron Bocksberger | Y13: 95 | Z13: Sylvio Fischer | AA13: 55 | AB13: Andreas Hartung | AC13: 135.0035 | AD13: Moritz Thomas | AE13: 140.0012 | AF13: Thomas Brünner | AG13: 145.0034 | AH13: Rico Krumbiegel | AI13: 145.0022 | AJ13: Matthias Eichel | AK13: 105.0018 | AL13: Andreas Hollin | AM13: 95.0024 | AN13: Marko Straßburger | AO13: 100.0027 | AP13: Marko Straßburger | AQ13: 90.0032 | AR13: Andreas Fandrei | AS13: 100.0027 | AT13: Shuo Yang | AU13: 135.0023 | AV13: Felix Rotsching | AW13: 35 | AX13: Andreas Hollin | AY13: 150
A14: 12 | B14: 4 | C14: 16 | D14: Marko Straßburger | E14: 995.0141 | F14: 995.0141 | G14: 0 | H14: 39 | I14: 105 | J14: 90 | K14: 0 | L14: 200.0028 | M14: 0 | N14: 50.0026 | O14: 0 | P14: 105.0028 | Q14: 100.0027 | R14: 90.0032 | S14: 0 | T14: 0 | U14: 0 | V14: 255 | W14: 0 | X14: Dominic Schmid | Y14: 95 | Z14: Felix Glasow | AA14: 40 | AB14: Andreas Hollin | AC14: 135.0014 | AD14: Christoph Richter | AE14: 135.004 | AF14: Irina Gorbataya | AG14: 135.0029 | AH14: Jens Künitz | AI14: 140.0012 | AJ14: Heiko Funk | AK14: 100.0034 | AL14: Thomas Kraege | AM14: 90.0036 | AN14: Felix Glasow | AO14: 90.0036 | AP14: Aaron Bocksberger | AQ14: 90.0027 | AR14: Timo Veit | AS14: 100.0023 | AT14: Oliver Witzik | AU14: 130.0028 | AV14: Ali Kirim | AW14: 30 | AX14: Paul N. Schmidt | AY14: 145
A15: 13 | B15: 1 | C15: 14 | D15: Jens Künitz | E15: 975.0152 | F15: 975.0152 | G15: 0 | I15: 0 | J15: 0 | K15: 0 | L15: 55.0011 | M15: 65.0019 | N15: 140.0012 | O15: 85.002 | P15: 0 | Q15: 85.0029 | R15: 0 | S15: 135.0028 | T15: 120.0033 | U15: 85 | V15: 205 | W15: 0 | X15: Florian Schmidt | Y15: 0 | Z15: Jörg Bonitz | AA15: 40 | AB15: Sylvio Fischer | AC15: 130.004 | AD15: Sylvio Fischer | AE15: 130.0038 | AF15: Aaron Bocksberger | AG15: 135.0028 | AH15: Björn Schumann | AI15: 135.0024 | AJ15: Thomas Krause | AK15: 95.0036 | AL15: Andreas Hartung | AM15: 90.0025 | AN15: Ayhan Ekiz | AO15: 90.0025 | AP15: Thomas Kraege | AQ15: 85.003 | AR15: Oliver Witzik | AS15: 100 | AT15: Christopher Jaritz | AU15: 130.0025 | AV15: Örbi Ermdorfer | AW15: 30 | AX15: Thomas Kraege | AY15: 135
A16: 14 | B16: -2 | C16: 12 | D16: Tino Delling | E16: 975.0136 | F16: 975.0136 | G16: 0 | H16: 56 | I16: 0 | J16: 230 | K16: 0 | L16: 0 | M16: 195.0022 | N16: 60.0032 | O16: 0 | P16: 135.0031 | Q16: 0 | R16: 150.0029 | S16: 0 | T16: 205.0022 | U16: 0 | V16: 0 | W16: 0 | X16: Marco Bertram | Y16: 90 | AB16: Oliver Witzik | AC16: 130.002 | AD16: Andreas Hollin | AE16: 125.0033 | AF16: Sylvio Fischer | AG16: 130.0037 | AH16: Oliver Witzik | AI16: 135.0011 | AJ16: Jens Künitz | AK16: 85.002 | AL16: Sylvio Fischer | AM16: 80.0035 | AN16: Jens Künitz | AO16: 85.0029 | AP16: Marec Stachly | AQ16: 80.0033 | AR16: Ulrich Löffel | AS16: 90.0033 | AT16: Andreas Hartung | AU16: 125.0027 | AV16: Matthias Bauer | AW16: 30 | AX16: Steffen Meußler | AY16: 125
A17: 15 | B17: 6 | C17: 21 | D17: Mohanad Al Obaidi | E17: 970.0062 | F17: 970.0062 | G17: 0 | H17: 63 | I17: 0 | J17: 0 | K17: 0 | L17: 0 | M17: 0 | N17: 0 | O17: 0 | P17: 0 | Q17: 0 | R17: 145.0031 | S17: 0 | T17: 440.0031 | U17: 0 | V17: 385 | W17: 0 | X17: Felix Glasow | Y17: 75 | AB17: Sven Ohlenroth | AC17: 125.0021 | AD17: Jörg Bonitz | AE17: 125.0027 | AF17: Andreas Hartung | AG17: 130.003 | AH17: Sven Ohlenroth | AI17: 125.0029 | AJ17: Peter Stadelmann | AK17: 75.0033 | AL17: Ulrich Löffel | AM17: 75.0029 | AN17: Peter Stadelmann | AO17: 80.003 | AP17: Andreas Hartung | AQ17: 80.0026 | AR17: Thomas Fritz | AS17: 90 | AT17: Ulrich Löffel | AU17: 125.0024 | AV17: Lubos Charvat | AW17: 20 | AX17: Rainer Trupkovic | AY17: 120
A18: 16 | B18: -3 | C18: 13 | D18: Ulrich Löffel | E18: 935.0233 | F18: 935.0233 | G18: 0 | H18: 34 | I18: 30 | J18: 0 | K18: 65.0034 | L18: 60.002 | M18: 60.0023 | N18: 60.0018 | O18: 40.0024 | P18: 75.0029 | Q18: 130.0028 | R18: 0 | S18: 90.0033 | T18: 125.0024 | U18: 140 | V18: 60 | W18: 0 | X18: Steffen Eilenstein | Y18: 75 | AB18: Thomas Fritz | AC18: 125 | AD18: Holger Seifert | AF18: Andreas Hollin | AG18: 130.0017 | AH18: Sylvio Fischer | AI18: 120.004 | AJ18: Aaron Bocksberger | AK18: 75.0029 | AL18: Mario Beetz | AM18: 70.003 | AN18: Jörg Bonitz | AO18: 70.0033 | AP18: Christoph Richter | AQ18: 0 | AR18: Matthias Bauer | AS18: 85.0035 | AT18: Jens Künitz | AU18: 120.0033 | AX18: Thomas Schnabl | AY18: 110
A19: 17 | B19: 2 | C19: 19 | D19: Heiko Funk | E19: 865.0157 | F19: 865.0157 | G19: 0 | H19: 35 | I19: 0 | J19: 0 | K19: 150.0036 | L19: 65.0017 | M19: 190.0013 | N19: 0 | O19: 100.0034 | P19: 35.0022 | Q19: 130.0035 | R19: 0 | S19: 0 | T19: 0 | U19: 0 | V19: 195 | W19: 0 | X19: Rene Scheurer | Y19: 55 | AB19: Ulrich Löffel | AC19: 65.0034 | AD19: Andreas Hartung | AE19: 65.0039 | AF19: Christopher Jaritz | AG19: 70.0036 | AH19: Hilmar Habrom | AI19: 70.003 | AJ19: Christopher Jaritz | AK19: 45.0027 | AL19: Aaron Bocksberger | AM19: 50.0032 | AN19: Marco Bertram | AO19: 35.0034 | AR19: Andreas Pohl | AS19: 40.0025 | AT19: Florian Schmidt | AU19: 65.0037 | AX19: Thimo Troks | AY19: 70
A20: 18 | B20: 2 | C20: 20 | D20: Andreas Hollin | E20: 810.0104 | F20: 810.0104 | G20: 0 | I20: 110 | J20: 0 | K20: 135.0014 | L20: 125.0033 | M20: 130.0017 | N20: 65.0016 | O20: 0 | P20: 95.0024 | Q20: 0 | R20: 0 | S20: 0 | T20: 0 | U20: 0 | V20: 150 | W20: 0 | X20: Peter Stadelmann | Y20: 40 | AB20: Lukas Junker | AC20: 65.0032 | AD20: Michael Simon | AE20: 65.0019 | AF20: Ayhan Ekiz | AG20: 65.0031 | AH20: Aaron Bocksberger | AI20: 70.0028 | AJ20: Frank Brömel | AK20: 45.0025 | AL20: Peter Stadelmann | AM20: 40.0021 | AN20: Lukas Junker | AO20: 35.0032 | AR20: Lubos Charvat | AS20: 35.0031 | AT20: Michael Haferung | AU20: 65.003 | AX20: Christopher Jaritz | AY20: 70
A21: 19 | B21: -2 | C21: 17 | D21: Christopher Jaritz | E21: 775.0135 | F21: 775.0135 | G21: 0 | H21: 30 | I21: 145 | J21: 110 | K21: 145.0011 | L21: 60.0036 | M21: 70.0036 | N21: 0 | O21: 45.0027 | P21: 0 | Q21: 0 | R21: 0 | S21: 0 | T21: 130.0025 | U21: 0 | V21: 70 | W21: 0 | X21: Frank Brömel | Y21: 35 | AB21: Thomas Kämpfer | AC21: 60.0031 | AD21: Mario Ilgen | AE21: 65.0018 | AF21: Jens Künitz | AG21: 65.0019 | AH21: Andre Jung | AJ21: Ulrich Löffel | AK21: 40.0024 | AL21: Heiko Funk | AM21: 35.0022 | AN21: Björn Rommel | AO21: 30.0023 | AR21: Örbi Ermdorfer | AS21: 30.0024 | AT21: Ayhan Ekiz | AU21: 65.0026 | AX21: Peter Stadelmann | AY21: 65
A22: 20 | B22: -5 | C22: 15 | D22: Moritz Thomas | E22: 745.0084 | F22: 745.0084 | G22: 0 | H22: 64 | I22: 0 | J22: 0 | K22: 0 | L22: 140.0012 | M22: 0 | N22: 265.001 | O22: 0 | P22: 205.0033 | Q22: 0 | R22: 0 | S22: 0 | T22: 135.0029 | U22: 0 | V22: 0 | W22: 0 | X22: Ulrich Löffel | Y22: 30 | AB22: Florian Tetzner | AC22: 60.003 | AD22: Heiko Funk | AE22: 65.0017 | AF22: Peter Stadelmann | AG22: 60.0025 | AH22: Andreas Hollin | AI22: 65.0016 | AJ22: Marco Bertram | AK22: 35.0023 | AL22: Marec Stachly | AM22: 30.0023 | AT22: Frank Brömel | AU22: 60.002 | AX22: Christoph Richter | AY22: 65
A23: 21 | B23: -3 | C23: 18 | D23: Thomas Brünner | E23: 700.0104 | F23: 700.0104 | G23: 0 | H23: 33 | I23: 0 | J23: 0 | K23: 190.001 | L23: 210.0032 | M23: 145.0034 | N23: 0 | O23: 0 | P23: 0 | Q23: 0 | R23: 155.0028 | S23: 0 | T23: 0 | U23: 0 | V23: 0 | W23: 0 | AB23: Jens Tzschirner | AC23: 60.0027 | AD23: Christopher Jaritz | AE23: 60.0036 | AF23: Ulrich Löffel | AG23: 60.0023 | AH23: Tino Delling | AI23: 60.0032 | AJ23: Ronald Ratz | AK23: 30.0031 | AT23: Andy Swennen | AU23: 60.0017 | AX23: Mario Beetz | AY23: 65
A24: 22 | B24: 0 | C24: 22 | D24: Peter Stadelmann | E24: 565.0199 | F24: 565.0199 | G24: 0 | I24: 40 | J24: 0 | K24: 50.0029 | L24: 55.0023 | M24: 60.0025 | N24: 50.002 | O24: 75.0033 | P24: 40.0021 | Q24: 80.003 | R24: 0 | S24: 0 | T24: 50.0018 | U24: 0 | V24: 65 | W24: 0 | AB24: Andreas Pohl | AC24: 60.0013 | AD24: Helmut Kuball | AE24: 60.003 | AF24: Lukas Junker | AG24: 60.002 | AH24: Florian Tetzner | AI24: 60.0027 | AJ24: Mario Beetz | AK24: 30.003 | AT24: Marco Bertram | AU24: 60.0016 | AX24: Ulrich Löffel | AY24: 60
A25: 23 | B25: 4 | C25: 27 | D25: Marco Bertram | E25: 500.0137 | F25: 500.0137 | G25: 0 | I25: 90 | J25: 0 | K25: 60.0009 | L25: 55.0016 | M25: 55.0016 | N25: 60.0023 | O25: 35.0023 | P25: 0 | Q25: 35.0034 | R25: 0 | S25: 0 | T25: 60.0016 | U25: 0 | V25: 50 | W25: 0 | AB25: Mario Beetz | AC25: 60.0012 | AD25: Felix Glasow | AE25: 60.0024 | AF25: Ronald Ratz | AG25: 60.0014 | AH25: Marco Bertram | AI25: 60.0023 | AJ25: Pragadeeshwaran Ratheesh | AK25: 30.0022 | AT25: Mario Beetz | AU25: 50.0034 | AX25: Ronny Zimmermann | AY25: 55
A26: 24 | B26: =IF(C26="","",C26-A26) -> -1 | C26: 23 | D26: Sven Ohlenroth | E26: 500.0104 | F26: 500.0104 | G26: 0 | I26: =SUMIF($X$3:$X$59,$D26,$Y$3:$Y$59) -> 0 | J26: =SUMIF($Z$3:$Z$42,$D26,$AA$3:$AA$42) -> 0 | K26: =SUMIF($AB$3:$AB$42,$D26,$AC$3:$AC$42) -> 125.0021 | L26: =SUMIF($AD$3:$AD$42,$D26,$AE$3:$AE$42) -> 0 | M26: =SUMIF($AF$3:$AF$42,$D26,$AG$3:$AG$42) -> 0 | N26: =SUMIF($AH$3:$AH$42,$D26,$AI$3:$AI$42) -> 125.0029 | O26: =SUMIF($AJ$3:$AJ$42,$D26,$AK$3:$AK$42) -> 115.0028 | P26: =SUMIF($AL$3:$AL$42,$D26,$AM$3:$AM$42) -> 135.0026 | Q26: =SUMIF(AN$3:AN$42,$D26,AO$3:AO$42) -> 0 | R26: =SUMIF(AP$3:AP$42,$D26,AQ$3:AQ$42) -> 0 | S26: =SUMIF(AR$3:AR$42,$D26,AS$3:AS$42) -> 0 | T26: =SUMIF(AT$3:AT$42,$D26,AU$3:AU$42) -> 0 | U26: =SUMIF(AV$3:AV$42,$D26,AW$3:AW$42) -> 0 | V26: =SUMIF(AX$3:AX$42,$D26,AY$3:AY$42) -> 0 | W26: =SUMIF(AZ$3:AZ$42,$D26,BA$3:BA$42) -> 0 | AB26: Marco Bertram | AC26: 60.0009 | AD26: Mario Beetz | AE26: 60.0021 | AF26: Jens Tzschirner | AG26: 55.0021 | AH26: Ulrich Löffel | AI26: 60.0018 | AT26: Ulrike Wilfer | AU26: 50.0021 | AX26: Rainer Krämer | AY26: 50
A27: 25 | B27: =IF(C27="","",C27-A27) -> -1 | C27: 24 | D27: Oliver Witzik | E27: 495.0059 | F27: 495.0059 | G27: 0 | H27: 41 | I27: =SUMIF($X$3:$X$59,$D27,$Y$3:$Y$59) -> 0 | J27: =SUMIF($Z$3:$Z$42,$D27,$AA$3:$AA$42) -> 0 | K27: =SUMIF($AB$3:$AB$42,$D27,$AC$3:$AC$42) -> 130.002 | L27: =SUMIF($AD$3:$AD$42,$D27,$AE$3:$AE$42) -> 0 | M27: =SUMIF($AF$3:$AF$42,$D27,$AG$3:$AG$42) -> 0 | N27: =SUMIF($AH$3:$AH$42,$D27,$AI$3:$AI$42) -> 135.0011 | O27: =SUMIF($AJ$3:$AJ$42,$D27,$AK$3:$AK$42) -> 0 | P27: =SUMIF($AL$3:$AL$42,$D27,$AM$3:$AM$42) -> 0 | Q27: =SUMIF(AN$3:AN$42,$D27,AO$3:AO$42) -> 0 | R27: =SUMIF(AP$3:AP$42,$D27,AQ$3:AQ$42) -> 0 | S27: =SUMIF(AR$3:AR$42,$D27,AS$3:AS$42) -> 100 | T27: =SUMIF(AT$3:AT$42,$D27,AU$3:AU$42) -> 130.0028 | U27: =SUMIF(AV$3:AV$42,$D27,AW$3:AW$42) -> 0 | V27: =SUMIF(AX$3:AX$42,$D27,AY$3:AY$42) -> 0 | W27: =SUMIF(AZ$3:AZ$42,$D27,BA$3:BA$42) -> 0 | AB27: Steffen Eilenstein | AC27: 55.0028 | AD27: Ulrich Löffel | AE27: 60.002 | AF27: Marco Bertram | AG27: 55.0016 | AH27: Jörg Bonitz | AI27: 60.0017 | AT27: Peter Stadelmann | AU27: 50.0018 | AX27: Ronald Ratz | AY27: 50
A28: 26 | B28: -1 | C28: 25 | D28: Michael Haferung | E28: 490.008 | F28: 490.008 | G28: 0 | H28: 40 | I28: 0 | J28: 0 | K28: 0 | L28: 140.0026 | M28: 0 | N28: 0 | O28: 0 | P28: 0 | Q28: 285.0024 | R28: 0 | S28: 0 | T28: 65.003 | U28: 0 | V28: 0 | W28: 0 | AB28: Frank Müller | AC28: 55.0024 | AD28: Peter Stadelmann | AE28: 55.0023 | AF28: Imad Mohamad | AH28: Andreas Hartung | AI28: 60.0014 | AX28: Marco Bertram | AY28: 50
A29: 27 | B29: -1 | C29: 26 | D29: Michael Seidel | E29: 490.0053 | F29: 490.0053 | G29: 0 | I29: 0 | J29: 0 | K29: 0 | L29: 0 | M29: 0 | N29: 0 | O29: 0 | P29: 0 | Q29: 0 | R29: 0 | S29: 125.0021 | T29: 200.0032 | U29: 165 | V29: 0 | W29: 0 | AB29: Peter Stadelmann | AC29: 50.0029 | AD29: Frank Hörnig | AE29: 55.0022 | AF29: Helmut Kuball | AG29: 50.0027 | AH29: Thomas Kraege | AI29: 55.0009
A30: 28 | B30: 5 | C30: 33 | D30: Thomas Kraege | E30: 485.0096 | F30: 485.0096 | G30: 0 | I30: 0 | J30: 0 | K30: 0 | L30: 0 | M30: 0 | N30: 55.0009 | O30: 120.0021 | P30: 90.0036 | Q30: 0 | R30: 85.003 | S30: 0 | T30: 0 | U30: 0 | V30: 135 | W30: 0 | AB30: Helmut Kuball | AC30: 50.0026 | AD30: Marco Bertram | AE30: 55.0016 | AF30: Felix Glasow | AG30: 50.0026 | AH30: Rene Reinhardt
A31: 29 | B31: 0 | C31: 29 | D31: Mario Beetz | E31: 475.0155 | F31: 475.0155 | G31: 0 | I31: 0 | J31: 0 | K31: 60.0012 | L31: 60.0021 | M31: 50.0015 | N31: 50.0013 | O31: 30.003 | P31: 70.003 | Q31: 0 | R31: 0 | S31: 0 | T31: 50.0034 | U31: 40 | V31: 65 | W31: 0 | AB31: Frank Hörnig | AC31: 50.0025 | AD31: Jens Künitz | AE31: 55.0011 | AF31: Christoph Richter | AG31: 50.0024 | AH31: Marko Straßburger | AI31: 50.0026
A32: 30 | B32: 0 | C32: 30 | D32: Christoph Richter | E32: 445.0081 | F32: 445.0081 | G32: 0 | I32: 0 | J32: 0 | K32: 195.0017 | L32: 135.004 | M32: 50.0024 | N32: 0 | O32: 0 | P32: 0 | Q32: 0 | R32: 0 | S32: 0 | T32: 0 | U32: 0 | V32: 65 | W32: 0 | AB32: Frank Brömel | AC32: 50.0023 | AD32: Ronald Ratz | AE32: 55.001 | AF32: Mario Beetz | AG32: 50.0015 | AH32: Peter Stadelmann | AI32: 50.002
A33: 31 | B33: -3 | C33: 28 | D33: Jörg Bonitz | E33: 425.0077 | F33: 425.0077 | G33: 0 | I33: 130 | J33: 40 | K33: 0 | L33: 125.0027 | M33: 0 | N33: 60.0017 | O33: 0 | P33: 0 | Q33: 70.0033 | R33: 0 | S33: 0 | T33: 0 | U33: 0 | V33: 0 | W33: 0 | AB33: Thomas Garbe | AC33: 50.0022 | AD33: Björn Rommel | AE33: 0 | AH33: Steffen Eilenstein | AI33: 50.0019
A34: 32 | B34: -1 | C34: 31 | D34: Felix Glasow | E34: 365.0105 | F34: 365.0105 | G34: 0 | I34: 75 | J34: 40 | K34: 50.0019 | L34: 60.0024 | M34: 50.0026 | N34: 0 | O34: 0 | P34: 0 | Q34: 90.0036 | R34: 0 | S34: 0 | T34: 0 | U34: 0 | V34: 0 | W34: 0 | AB34: Felix Glasow | AC34: 50.0019 | AD34: Frank Brömel | AE34: 50.0025 | AH34: Mario Beetz | AI34: 50.0013
A35: 33 | B35: -1 | C35: 32 | D35: Ayhan Ekiz | E35: =I35+J35+K35+L35+M35+N35+O35+P35+Q35+R35+S35+T35+U35+V35+W35 -> 355.0101 | F35: =E35-G35 -> 355.0101 | G35: =INDEX(I35:W35,MATCH(LARGE(I35:W35,COUNTIF(I35:W35,">="&0)),I35:W35,0)) -> 0 | H35: 44 | I35: 0 | J35: 0 | K35: 0 | L35: 0 | M35: 65.0031 | N35: 0 | O35: 135.0019 | P35: 0 | Q35: 90.0025 | R35: 0 | S35: 0 | T35: 65.0026 | U35: 0 | V35: 0 | W35: 0
A36: 34 | B36: 0 | C36: 34 | D36: Ali Kirim | E36: 325.0032 | F36: 325.0032 | G36: 0 | H36: 31 | I36: 0 | J36: 0 | K36: 0 | L36: 0 | M36: 0 | N36: 0 | O36: 0 | P36: 0 | Q36: 0 | R36: 0 | S36: 295.0032 | T36: 0 | U36: 30 | V36: 0 | W36: 0
A37: 35 | B37: 0 | C37: 35 | D37: Andreas Fandrei | E37: 320.0027 | F37: 320.0027 | G37: 0 | H37: 35 | I37: 0 | J37: 0 | K37: 0 | L37: 0 | M37: 0 | N37: 0 | O37: 0 | P37: 0 | Q37: 0 | R37: 0 | S37: 100.0027 | T37: 0 | U37: 220 | V37: 0 | W37: 0
A38: 36 | B38: 0 | C38: 36 | D38: Thomas Fritz | E38: 305 | F38: 305 | G38: 0 | I38: 0 | J38: 0 | K38: 125 | L38: 0 | M38: 0 | N38: 0 | O38: 0 | P38: 0 | Q38: 0 | R38: 0 | S38: 90 | T38: 0 | U38: 90 | V38: 0 | W38: 0
A39: 37 | B39: 4 | C39: 41 | D39: Thimo Troks | E39: 280.0031 | F39: 280.0031 | G39: 0 | H39: 63 | I39: 0 | J39: 0 | K39: 0 | L39: 210.0031 | M39: 0 | N39: 0 | O39: 0 | P39: 0 | Q39: 0 | R39: 0 | S39: 0 | T39: 0 | U39: 0 | V39: 70 | W39: 0
A40: 38 | B40: -1 | C40: 37 | D40: Hans Bergmann | E40: 275.0029 | F40: 275.0029 | G40: 0 | I40: 0 | J40: 0 | K40: 0 | L40: 0 | M40: 0 | N40: 0 | O40: 0 | P40: 0 | Q40: 0 | R40: 0 | S40: 230.0029 | T40: 0 | U40: 45 | V40: 0 | W40: 0
A41: 39 | B41: -1 | C41: 38 | D41: Florian Tetzner | E41: 260.0072 | F41: 260.0072 | G41: 0 | I41: 0 | J41: 0 | K41: 60.003 | L41: 140.0015 | M41: 0 | N41: 60.0027 | O41: 0 | P41: 0 | Q41: 0 | R41: 0 | S41: 0 | T41: 0 | U41: 0 | V41: 0 | W41: 0
A42: 40 | B42: -1 | C42: 39 | D42: Frank Hofmann | E42: 260.0011 | F42: 260.0011 | G42: 0 | I42: 0 | J42: 0 | K42: 0 | L42: 0 | M42: 260.0011 | N42: 0 | O42: 0 | P42: 0 | Q42: 0 | R42: 0 | S42: 0 | T42: 0 | U42: 0 | V42: 0 | W42: 0
A43: 41 | B43: -1 | C43: 40 | D43: Frank Brömel | E43: 240.0093 | F43: 240.0093 | G43: 0 | I43: 35 | J43: 0 | K43: 50.0023 | L43: 50.0025 | M43: 0 | N43: 0 | O43: 45.0025 | P43: 0 | Q43: 0 | R43: 0 | S43: 0 | T43: 60.002 | U43: 0 | V43: 0 | W43: 0
A44: 42 | B44: 7 | C44: 49 | D44: Ronald Ratz | E44: 195.0055 | F44: 195.0055 | G44: 0 | I44: 0 | J44: 0 | K44: 0 | L44: 55.001 | M44: 60.0014 | N44: 0 | O44: 30.0031 | P44: 0 | Q44: 0 | R44: 0 | S44: 0 | T44: 0 | U44: 0 | V44: 50 | W44: 0
A45: 43 | B45: =IF(C45="","",C45-A45) -> -1 | C45: 42 | D45: Robert Ochmann | E45: 195.0015 | F45: 195.0015 | G45: 0 | H45: 32 | I45: =SUMIF($X$3:$X$59,$D45,$Y$3:$Y$59) -> 0 | J45: =SUMIF($Z$3:$Z$42,$D45,$AA$3:$AA$42) -> 0 | K45: =SUMIF($AB$3:$AB$42,$D45,$AC$3:$AC$42) -> 0 | L45: =SUMIF($AD$3:$AD$42,$D45,$AE$3:$AE$42) -> 0 | M45: =SUMIF($AF$3:$AF$42,$D45,$AG$3:$AG$42) -> 0 | N45: =SUMIF($AH$3:$AH$42,$D45,$AI$3:$AI$42) -> 195.0015 | O45: =SUMIF($AJ$3:$AJ$42,$D45,$AK$3:$AK$42) -> 0 | P45: =SUMIF($AL$3:$AL$42,$D45,$AM$3:$AM$42) -> 0 | Q45: =SUMIF(AN$3:AN$42,$D45,AO$3:AO$42) -> 0 | R45: =SUMIF(AP$3:AP$42,$D45,AQ$3:AQ$42) -> 0 | S45: =SUMIF(AR$3:AR$42,$D45,AS$3:AS$42) -> 0 | T45: =SUMIF(AT$3:AT$42,$D45,AU$3:AU$42) -> 0 | U45: =SUMIF(AV$3:AV$42,$D45,AW$3:AW$42) -> 0 | V45: =SUMIF(AX$3:AX$42,$D45,AY$3:AY$42) -> 0 | W45: =SUMIF(AZ$3:AZ$42,$D45,BA$3:BA$42) -> 0
A46: 44 | B46: -1 | C46: 43 | D46: Daud Ilyas Ghauri | E46: 190 | F46: 190 | G46: 0 | I46: 0 | J46: 190 | K46: 0 | L46: 0 | M46: 0 | N46: 0 | O46: 0 | P46: 0 | Q46: 0 | R46: 0 | S46: 0 | T46: 0 | U46: 0 | V46: 0 | W46: 0
A47: 45 | B47: -1 | C47: 44 | D47: Steffen Eilenstein | E47: 180.0047 | F47: 180.0047 | G47: 0 | I47: 75 | J47: 0 | K47: 55.0028 | L47: 0 | M47: 0 | N47: 50.0019 | O47: 0 | P47: 0 | Q47: 0 | R47: 0 | S47: 0 | T47: 0 | U47: 0 | V47: 0 | W47: 0
A48: 46 | B48: -1 | C48: 45 | D48: Lukas Junker | E48: 160.0084 | F48: 160.0084 | G48: 0 | I48: 0 | J48: 0 | K48: 65.0032 | L48: 0 | M48: 60.002 | N48: 0 | O48: 0 | P48: 0 | Q48: 35.0032 | R48: 0 | S48: 0 | T48: 0 | U48: 0 | V48: 0 | W48: 0
A49: 47 | B49: -1 | C49: 46 | D49: Helmut Kuball | E49: 160.0083 | F49: 160.0083 | G49: 0 | I49: 0 | J49: 0 | K49: 50.0026 | L49: 60.003 | M49: 50.0027 | N49: 0 | O49: 0 | P49: 0 | Q49: 0 | R49: 0 | S49: 0 | T49: 0 | U49: 0 | V49: 0 | W49: 0
A50: 48 | B50: -1 | C50: 47 | D50: Ronny Rejke | E50: 155.0018 | F50: 155.0018 | G50: 0 | I50: 0 | J50: 0 | K50: 0 | L50: 0 | M50: 155.0018 | N50: 0 | O50: 0 | P50: 0 | Q50: 0 | R50: 0 | S50: 0 | T50: 0 | U50: 0 | V50: 0 | W50: 0
A51: 49 | B51: -1 | C51: 48 | D51: Felix Rotsching | E51: 150 | F51: 150 | G51: 0 | I51: 0 | J51: 0 | K51: 0 | L51: 0 | M51: 0 | N51: 0 | O51: 0 | P51: 0 | Q51: 0 | R51: 0 | S51: 115 | T51: 0 | U51: 35 | V51: 0 | W51: 0
A52: 50 | B52: 0 | C52: 50 | D52: Rico Krumbiegel | E52: 145.0022 | F52: 145.0022 | G52: 0 | I52: 0 | J52: 0 | K52: 0 | L52: 0 | M52: 0 | N52: 145.0022 | O52: 0 | P52: 0 | Q52: 0 | R52: 0 | S52: 0 | T52: 0 | U52: 0 | V52: 0 | W52: 0
A53: 51 | B53: 0 | C53: 51 | D53: Andre Jung | E53: 135.0032 | F53: 135.0032 | G53: 0 | H53: 34 | I53: 0 | J53: 0 | K53: 0 | L53: 0 | M53: 0 | N53: 0 | O53: 135.0032 | P53: 0 | Q53: 0 | R53: 0 | S53: 0 | T53: 0 | U53: 0 | V53: 0 | W53: 0
A54: 52 | B54: 0 | C54: 52 | D54: Irina Gorbataya | E54: 135.0029 | F54: 135.0029 | G54: 0 | I54: 0 | J54: 0 | K54: 0 | L54: 0 | M54: 135.0029 | N54: 0 | O54: 0 | P54: 0 | Q54: 0 | R54: 0 | S54: 0 | T54: 0 | U54: 0 | V54: 0 | W54: 0
A55: 53 | B55: =IF(C55="","",C55-A55) -> 0 | C55: 53 | D55: Björn Schumann | E55: 135.0024 | F55: 135.0024 | G55: 0 | I55: 0 | J55: 0 | K55: 0 | L55: 0 | M55: 0 | N55: 135.0024 | O55: 0 | P55: 0 | Q55: 0 | R55: 0 | S55: 0 | T55: 0 | U55: 0 | V55: 0 | W55: 0
A56: 54 | B56: 0 | C56: 54 | D56: Shuo Yang | E56: 135.0023 | F56: 135.0023 | G56: 0 | H56: 32 | I56: 0 | J56: 0 | K56: 0 | L56: 0 | M56: 0 | N56: 0 | O56: 0 | P56: 0 | Q56: 0 | R56: 0 | S56: 0 | T56: 135.0023 | U56: 0 | V56: 0 | W56: 0
A57: 55 | D57: Steffen Meußler | E57: 125 | F57: 125 | G57: 0 | I57: 0 | J57: 0 | K57: 0 | L57: 0 | M57: 0 | N57: 0 | O57: 0 | P57: 0 | Q57: 0 | R57: 0 | S57: 0 | T57: 0 | U57: 0 | V57: 125 | W57: 0
A58: 56 | D58: Rainer Trupkovic | E58: 120 | F58: 120 | G58: 0 | I58: 0 | J58: 0 | K58: 0 | L58: 0 | M58: 0 | N58: 0 | O58: 0 | P58: 0 | Q58: 0 | R58: 0 | S58: 0 | T58: 0 | U58: 0 | V58: 120 | W58: 0
A59: 57 | B59: -2 | C59: 55 | D59: Jens Tzschirner | E59: 115.0048 | F59: 115.0048 | G59: 0 | I59: 0 | J59: 0 | K59: 60.0027 | L59: 0 | M59: 55.0021 | N59: 0 | O59: 0 | P59: 0 | Q59: 0 | R59: 0 | S59: 0 | T59: 0 | U59: 0 | V59: 0 | W59: 0
A60: 58 | B60: -2 | C60: 56 | D60: Matthias Bauer | E60: 115.0035 | F60: 115.0035 | G60: 0 | I60: 0 | J60: 0 | K60: 0 | L60: 0 | M60: 0 | N60: 0 | O60: 0 | P60: 0 | Q60: 0 | R60: 0 | S60: 85.0035 | T60: 0 | U60: 30 | V60: 0 | W60: 0
A61: 59 | B61: -2 | C61: 57 | D61: Marec Stachly | E61: 110.0056 | F61: 110.0056 | G61: 0 | I61: 0 | J61: 0 | K61: 0 | L61: 0 | M61: 0 | N61: 0 | O61: 0 | P61: 30.0023 | Q61: 0 | R61: 80.0033 | S61: 0 | T61: 0 | U61: 0 | V61: 0 | W61: 0
A62: 60 | B62: -2 | C62: 58 | D62: Till Fritzsche | E62: 110.0027 | F62: 110.0027 | G62: 0 | I62: 0 | J62: 0 | K62: 0 | L62: 0 | M62: 0 | N62: 0 | O62: 0 | P62: 110.0027 | Q62: 0 | R62: 0 | S62: 0 | T62: 0 | U62: 0 | V62: 0 | W62: 0
A63: 61 | D63: Thomas Schnabl | E63: 110 | F63: 110 | G63: 0 | I63: 0 | J63: 0 | K63: 0 | L63: 0 | M63: 0 | N63: 0 | O63: 0 | P63: 0 | Q63: 0 | R63: 0 | S63: 0 | T63: 0 | U63: 0 | V63: 110 | W63: 0
A64: 62 | B64: -3 | C64: 59 | D64: Frank Hörnig | E64: 105.0047 | F64: 105.0047 | G64: 0 | I64: 0 | J64: 0 | K64: 50.0025 | L64: 55.0022 | M64: 0 | N64: 0 | O64: 0 | P64: 0 | Q64: 0 | R64: 0 | S64: 0 | T64: 0 | U64: 0 | V64: 0 | W64: 0
A65: 63 | B65: -3 | C65: 60 | D65: Andreas Lositza | E65: 105.0036 | F65: 105.0036 | G65: 0 | I65: 0 | J65: 0 | K65: 0 | L65: 0 | M65: 0 | N65: 0 | O65: 0 | P65: 0 | Q65: 0 | R65: 0 | S65: 105.0036 | T65: 0 | U65: 0 | V65: 0 | W65: 0
A66: 64 | B66: -3 | C66: 61 | D66: Matthias Eichel | E66: 105.0018 | F66: 105.0018 | G66: 0 | I66: 0 | J66: 0 | K66: 0 | L66: 0 | M66: 0 | N66: 0 | O66: 105.0018 | P66: 0 | Q66: 0 | R66: 0 | S66: 0 | T66: 0 | U66: 0 | V66: 0 | W66: 0
A67: 65 | B67: -3 | C67: 62 | D67: Andreas Pohl | E67: =I67+J67+K67+L67+M67+N67+O67+P67+Q67+R67+S67+T67+U67+V67+W67 -> 100.0038 | F67: =E67-G67 -> 100.0038 | G67: =INDEX(I67:W67,MATCH(LARGE(I67:W67,COUNTIF(I67:W67,">="&0)),I67:W67,0)) -> 0 | I67: =SUMIF($X$3:$X$59,$D67,$Y$3:$Y$59) -> 0 | J67: =SUMIF($Z$3:$Z$42,$D67,$AA$3:$AA$42) -> 0 | K67: =SUMIF($AB$3:$AB$42,$D67,$AC$3:$AC$42) -> 60.0013 | L67: =SUMIF($AD$3:$AD$42,$D67,$AE$3:$AE$42) -> 0 | M67: =SUMIF($AF$3:$AF$42,$D67,$AG$3:$AG$42) -> 0 | N67: =SUMIF($AH$3:$AH$42,$D67,$AI$3:$AI$42) -> 0 | O67: =SUMIF($AJ$3:$AJ$42,$D67,$AK$3:$AK$42) -> 0 | P67: =SUMIF($AL$3:$AL$42,$D67,$AM$3:$AM$42) -> 0 | Q67: =SUMIF(AN$3:AN$42,$D67,AO$3:AO$42) -> 0 | R67: =SUMIF(AP$3:AP$42,$D67,AQ$3:AQ$42) -> 0 | S67: =SUMIF(AR$3:AR$42,$D67,AS$3:AS$42) -> 40.0025 | T67: =SUMIF(AT$3:AT$42,$D67,AU$3:AU$42) -> 0 | U67: =SUMIF(AV$3:AV$42,$D67,AW$3:AW$42) -> 0 | V67: =SUMIF(AX$3:AX$42,$D67,AY$3:AY$42) -> 0 | W67: =SUMIF(AZ$3:AZ$42,$D67,BA$3:BA$42) -> 0
A68: 66 | B68: -3 | C68: 63 | D68: Timo Veit | E68: 100.0023 | F68: 100.0023 | G68: 0 | I68: 0 | J68: 0 | K68: 0 | L68: 0 | M68: 0 | N68: 0 | O68: 0 | P68: 0 | Q68: 0 | R68: 0 | S68: 100.0023 | T68: 0 | U68: 0 | V68: 0 | W68: 0
A69: 67 | B69: -3 | C69: 64 | D69: Dominic Schmid | E69: 95 | F69: 95 | G69: 0 | I69: 95 | J69: 0 | K69: 0 | L69: 0 | M69: 0 | N69: 0 | O69: 0 | P69: 0 | Q69: 0 | R69: 0 | S69: 0 | T69: 0 | U69: 0 | V69: 0 | W69: 0
A70: 68 | B70: -3 | C70: 65 | D70: Patrick Schicker | E70: 85 | F70: 85 | G70: 0 | I70: 0 | J70: 0 | K70: 0 | L70: 0 | M70: 0 | N70: 0 | O70: 0 | P70: 0 | Q70: 0 | R70: 0 | S70: 0 | T70: 0 | U70: 85 | V70: 0 | W70: 0
A71: 69 | B71: -3 | C71: 66 | D71: Hilmar Habrom | E71: 70.003 | F71: 70.003 | G71: 0 | H71: 32 | I71: 0 | J71: 0 | K71: 0 | L71: 0 | M71: 0 | N71: 70.003 | O71: 0 | P71: 0 | Q71: 0 | R71: 0 | S71: 0 | T71: 0 | U71: 0 | V71: 0 | W71: 0
A72: 70 | B72: -3 | C72: 67 | D72: Michael Simon | E72: 65.0019 | F72: 65.0019 | G72: 0 | I72: 0 | J72: 0 | K72: 0 | L72: 65.0019 | M72: 0 | N72: 0 | O72: 0 | P72: 0 | Q72: 0 | R72: 0 | S72: 0 | T72: 0 | U72: 0 | V72: 0 | W72: 0
A73: 71 | B73: -3 | C73: 68 | D73: Mario Ilgen | E73: 65.0018 | F73: 65.0018 | G73: 0 | I73: 0 | J73: 0 | K73: 0 | L73: 65.0018 | M73: 0 | N73: 0 | O73: 0 | P73: 0 | Q73: 0 | R73: 0 | S73: 0 | T73: 0 | U73: 0 | V73: 0 | W73: 0
A74: 72 | B74: -3 | C74: 69 | D74: Thomas Kämpfer | E74: 60.0031 | F74: 60.0031 | G74: 0 | I74: 0 | J74: 0 | K74: 60.0031 | L74: 0 | M74: 0 | N74: 0 | O74: 0 | P74: 0 | Q74: 0 | R74: 0 | S74: 0 | T74: 0 | U74: 0 | V74: 0 | W74: 0
A75: 73 | B75: -3 | C75: 70 | D75: Örbi Ermdorfer | E75: 60.0024 | F75: 60.0024 | G75: 0 | I75: 0 | J75: 0 | K75: 0 | L75: 0 | M75: 0 | N75: 0 | O75: 0 | P75: 0 | Q75: 0 | R75: 0 | S75: 30.0024 | T75: 0 | U75: 30 | V75: 0 | W75: 0
A76: 74 | B76: -3 | C76: 71 | D76: Andy Swennen | E76: 60.0017 | F76: 60.0017 | G76: 0 | I76: 0 | J76: 0 | K76: 0 | L76: 0 | M76: 0 | N76: 0 | O76: 0 | P76: 0 | Q76: 0 | R76: 0 | S76: 0 | T76: 60.0017 | U76: 0 | V76: 0 | W76: 0
A77: 75 | B77: -3 | C77: 72 | D77: Lubos Charvat | E77: 55.0031 | F77: 55.0031 | G77: 0 | I77: 0 | J77: 0 | K77: 0 | L77: 0 | M77: 0 | N77: 0 | O77: 0 | P77: 0 | Q77: 0 | R77: 0 | S77: 35.0031 | T77: 0 | U77: 20 | V77: 0 | W77: 0
A78: 76 | B78: -3 | C78: 73 | D78: Frank Müller | E78: 55.0024 | F78: 55.0024 | G78: 0 | I78: 0 | J78: 0 | K78: 55.0024 | L78: 0 | M78: 0 | N78: 0 | O78: 0 | P78: 0 | Q78: 0 | R78: 0 | S78: 0 | T78: 0 | U78: 0 | V78: 0 | W78: 0
A79: 77 | D79: Ronny Zimmermann | E79: 55 | F79: 55 | G79: 0 | I79: 0 | J79: 0 | K79: 0 | L79: 0 | M79: 0 | N79: 0 | O79: 0 | P79: 0 | Q79: 0 | R79: 0 | S79: 0 | T79: 0 | U79: 0 | V79: 55 | W79: 0
A80: 78 | B80: -4 | C80: 74 | D80: Thomas Garbe | E80: 50.0022 | F80: 50.0022 | G80: 0 | I80: 0 | J80: 0 | K80: 50.0022 | L80: 0 | M80: 0 | N80: 0 | O80: 0 | P80: 0 | Q80: 0 | R80: 0 | S80: 0 | T80: 0 | U80: 0 | V80: 0 | W80: 0
A81: 79 | B81: -4 | C81: 75 | D81: Ulrike Wilfer | E81: 50.0021 | F81: 50.0021 | G81: 0 | I81: 0 | J81: 0 | K81: 0 | L81: 0 | M81: 0 | N81: 0 | O81: 0 | P81: 0 | Q81: 0 | R81: 0 | S81: 0 | T81: 50.0021 | U81: 0 | V81: 0 | W81: 0
A82: 80 | D82: Rainer Krämer | E82: 50 | F82: 50 | G82: 0 | I82: 0 | J82: 0 | K82: 0 | L82: 0 | M82: 0 | N82: 0 | O82: 0 | P82: 0 | Q82: 0 | R82: 0 | S82: 0 | T82: 0 | U82: 0 | V82: 50 | W82: 0
A83: 81 | B83: -5 | C83: 76 | D83: Björn Rommel | E83: 30.0023 | F83: 30.0023 | G83: 0 | I83: 0 | J83: 0 | K83: 0 | L83: 0 | M83: 0 | N83: 0 | O83: 0 | P83: 0 | Q83: 30.0023 | R83: 0 | S83: 0 | T83: 0 | U83: 0 | V83: 0 | W83: 0
A84: 82 | B84: -5 | C84: 77 | D84: Pragadeeshwaran Ratheesh | E84: 30.0022 | F84: 30.0022 | G84: 0 | I84: 0 | J84: 0 | K84: 0 | L84: 0 | M84: 0 | N84: 0 | O84: 30.0022 | P84: 0 | Q84: 0 | R84: 0 | S84: 0 | T84: 0 | U84: 0 | V84: 0 | W84: 0
A85: 83 | B85: -5 | C85: 78 | D85: Holger Seifert | E85: 0 | F85: 0 | G85: 0 | I85: 0 | J85: 0 | K85: 0 | L85: 0 | M85: 0 | N85: 0 | O85: 0 | P85: 0 | Q85: 0 | R85: 0 | S85: 0 | T85: 0 | U85: 0 | V85: 0 | W85: 0
A86: 84 | B86: -5 | C86: 79 | D86: Imad Mohamad | E86: 0 | F86: 0 | G86: 0 | I86: 0 | J86: 0 | K86: 0 | L86: 0 | M86: 0 | N86: 0 | O86: 0 | P86: 0 | Q86: 0 | R86: 0 | S86: 0 | T86: 0 | U86: 0 | V86: 0 | W86: 0
A87: 85 | B87: =IF(C87="","",C87-A87) -> -5 | C87: 80 | D87: Rene Reinhardt | E87: 0 | F87: 0 | G87: 0 | I87: 0 | J87: 0 | K87: 0 | L87: 0 | M87: 0 | N87: 0 | O87: 0 | P87: 0 | Q87: 0 | R87: 0 | S87: 0 | T87: 0 | U87: 0 | V87: 0 | W87: 0
A88: 86 | C88: =IF(D88="","",86) ->  | E88: 0 | F88: 0 | G88: 0 | I88: 0 | J88: 0 | K88: 0 | L88: 0 | M88: 0 | N88: 0 | O88: 0 | P88: 0 | Q88: 0 | R88: 0 | S88: 0 | T88: 0 | U88: 0 | V88: 0 | W88: 0
A89: 87 | C89: =IF(D89="","",87) ->  | E89: 0 | F89: 0 | G89: 0 | I89: 0 | J89: 0 | K89: 0 | L89: 0 | M89: 0 | N89: 0 | O89: 0 | P89: 0 | Q89: 0 | R89: 0 | S89: 0 | T89: 0 | U89: 0 | V89: 0 | W89: 0
A90: 88 | C90: =IF(D90="","",88) ->  | E90: 0 | F90: 0 | G90: 0 | I90: 0 | J90: 0 | K90: 0 | L90: 0 | M90: 0 | N90: 0 | O90: 0 | P90: 0 | Q90: 0 | R90: 0 | S90: 0 | T90: 0 | U90: 0 | V90: 0 | W90: 0
A91: 89 | C91: =IF(D91="","",89) ->  | E91: 0 | F91: 0 | G91: 0 | I91: 0 | J91: 0 | K91: 0 | L91: 0 | M91: 0 | N91: 0 | O91: 0 | P91: 0 | Q91: 0 | R91: 0 | S91: 0 | T91: 0 | U91: 0 | V91: 0 | W91: 0
A92: 90 | C92: =IF(D92="","",90) ->  | E92: 0 | F92: 0 | G92: 0 | I92: 0 | J92: 0 | K92: 0 | L92: 0 | M92: 0 | N92: 0 | O92: 0 | P92: 0 | Q92: 0 | R92: 0 | S92: 0 | T92: 0 | U92: 0 | V92: 0 | W92: 0
A93: 91 | C93: =IF(D93="","",91) ->  | E93: 0 | F93: 0 | G93: 0 | I93: 0 | J93: 0 | K93: 0 | L93: 0 | M93: 0 | N93: 0 | O93: 0 | P93: 0 | Q93: 0 | R93: 0 | S93: 0 | T93: 0 | U93: 0 | V93: 0 | W93: 0
A94: 92 | C94: =IF(D94="","",92) ->  | E94: 0 | F94: 0 | G94: 0 | I94: 0 | J94: 0 | K94: 0 | L94: 0 | M94: 0 | N94: 0 | O94: 0 | P94: 0 | Q94: 0 | R94: 0 | S94: 0 | T94: 0 | U94: 0 | V94: 0 | W94: 0
A95: 93 | C95: =IF(D95="","",93) ->  | E95: 0 | F95: 0 | G95: 0 | I95: 0 | J95: 0 | K95: 0 | L95: 0 | M95: 0 | N95: 0 | O95: 0 | P95: 0 | Q95: 0 | R95: 0 | S95: 0 | T95: 0 | U95: 0 | V95: 0 | W95: 0
A96: 94 | C96: =IF(D96="","",94) ->  | E96: 0 | F96: 0 | G96: 0 | I96: 0 | J96: 0 | K96: 0 | L96: 0 | M96: 0 | N96: 0 | O96: 0 | P96: 0 | Q96: 0 | R96: 0 | S96: 0 | T96: 0 | U96: 0 | V96: 0 | W96: 0
A97: 95 | C97: =IF(D97="","",95) ->  | E97: 0 | F97: 0 | G97: 0 | I97: 0 | J97: 0 | K97: 0 | L97: 0 | M97: 0 | N97: 0 | O97: 0 | P97: 0 | Q97: 0 | R97: 0 | S97: 0 | T97: 0 | U97: 0 | V97: 0 | W97: 0
A98: 96 | C98: =IF(D98="","",96) ->  | E98: 0 | F98: 0 | G98: 0 | I98: 0 | J98: 0 | K98: 0 | L98: 0 | M98: 0 | N98: 0 | O98: 0 | P98: 0 | Q98: 0 | R98: 0 | S98: 0 | T98: 0 | U98: 0 | V98: 0 | W98: 0
A99: 97 | C99: =IF(D99="","",97) ->  | E99: =I99+J99+K99+L99+M99+N99+O99+P99+Q99+R99+S99+T99+U99+V99+W99 -> 0 | F99: =E99-G99 -> 0 | G99: =INDEX(I99:W99,MATCH(LARGE(I99:W99,COUNTIF(I99:W99,">="&0)),I99:W99,0)) -> 0 | I99: =SUMIF($X$3:$X$59,$D99,$Y$3:$Y$59) -> 0 | J99: =SUMIF($Z$3:$Z$42,$D99,$AA$3:$AA$42) -> 0 | K99: =SUMIF($AB$3:$AB$42,$D99,$AC$3:$AC$42) -> 0 | L99: =SUMIF($AD$3:$AD$42,$D99,$AE$3:$AE$42) -> 0 | M99: =SUMIF($AF$3:$AF$42,$D99,$AG$3:$AG$42) -> 0 | N99: =SUMIF($AH$3:$AH$42,$D99,$AI$3:$AI$42) -> 0 | O99: =SUMIF($AJ$3:$AJ$42,$D99,$AK$3:$AK$42) -> 0 | P99: =SUMIF($AL$3:$AL$42,$D99,$AM$3:$AM$42) -> 0 | Q99: =SUMIF(AN$3:AN$42,$D99,AO$3:AO$42) -> 0 | R99: =SUMIF(AP$3:AP$42,$D99,AQ$3:AQ$42) -> 0 | S99: =SUMIF(AR$3:AR$42,$D99,AS$3:AS$42) -> 0 | T99: =SUMIF(AT$3:AT$42,$D99,AU$3:AU$42) -> 0 | U99: =SUMIF(AV$3:AV$42,$D99,AW$3:AW$42) -> 0 | V99: =SUMIF(AX$3:AX$42,$D99,AY$3:AY$42) -> 0 | W99: =SUMIF(AZ$3:AZ$42,$D99,BA$3:BA$42) -> 0
A100: 98 | C100: =IF(D100="","",98) ->  | E100: 0 | F100: 0 | G100: 0 | I100: 0 | J100: 0 | K100: 0 | L100: 0 | M100: 0 | N100: 0 | O100: 0 | P100: 0 | Q100: 0 | R100: 0 | S100: 0 | T100: 0 | U100: 0 | V100: 0 | W100: 0
A101: 99 | C101: =IF(D101="","",99) ->  | E101: 0 | F101: 0 | G101: 0 | I101: 0 | J101: 0 | K101: 0 | L101: 0 | M101: 0 | N101: 0 | O101: 0 | P101: 0 | Q101: 0 | R101: 0 | S101: 0 | T101: 0 | U101: 0 | V101: 0 | W101: 0
A102: 100 | C102: =IF(D102="","",100) ->  | E102: 0 | F102: 0 | G102: 0 | I102: 0 | J102: 0 | K102: 0 | L102: 0 | M102: 0 | N102: 0 | O102: 0 | P102: 0 | Q102: 0 | R102: 0 | S102: 0 | T102: 0 | U102: 0 | V102: 0 | W102: 0
E103: 0 | G103: 0 | I103: 0 | J103: 0 | K103: 0 | L103: 0 | M103: 0 | N103: 0 | O103: 0 | P103: 0 | Q103: 0 | R103: 0 | S103: 0 | T103: 0 | U103: 0 | V103: 0 | W103: 0
E104: 0 | G104: 0 | I104: 0 | J104: 0 | K104: 0 | L104: 0 | M104: 0 | N104: 0 | O104: 0 | P104: 0 | Q104: 0 | R104: 0 | S104: 0 | T104: 0 | U104: 0 | V104: 0 | W104: 0
E105: 0 | G105: 0 | I105: 0 | J105: 0 | K105: 0 | L105: 0 | M105: 0 | N105: 0 | O105: 0 | P105: 0 | Q105: 0 | R105: 0 | S105: 0 | T105: 0 | U105: 0 | V105: 0 | W105: 0
E106: 0 | G106: 0 | I106: 0 | J106: 0 | K106: 0 | L106: 0 | M106: 0 | N106: 0 | O106: 0 | P106: 0 | Q106: 0 | R106: 0 | S106: 0 | T106: 0 | U106: 0 | V106: 0 | W106: 0
E107: 0 | G107: 0 | I107: 0 | J107: 0 | K107: 0 | L107: 0 | M107: 0 | N107: 0 | O107: 0 | P107: 0 | Q107: 0 | R107: 0 | S107: 0 | T107: 0 | U107: 0 | V107: 0 | W107: 0
E108: 0 | G108: 0 | I108: 0 | J108: 0 | K108: 0 | L108: 0 | M108: 0 | N108: 0 | O108: 0 | P108: 0 | Q108: 0 | R108: 0 | S108: 0 | T108: 0 | U108: 0 | V108: 0 | W108: 0
E109: 0 | G109: 0 | I109: 0 | J109: 0 | K109: 0 | L109: 0 | M109: 0 | N109: 0 | O109: 0 | P109: 0 | Q109: 0 | R109: 0 | S109: 0 | T109: 0 | U109: 0 | V109: 0 | W109: 0
E110: 0 | G110: 0 | I110: 0 | J110: 0 | K110: 0 | L110: 0 | M110: 0 | N110: 0 | O110: 0 | P110: 0 | Q110: 0 | R110: 0 | S110: 0 | T110: 0 | U110: 0 | V110: 0 | W110: 0
E111: 0 | G111: 0 | I111: 0 | J111: 0 | K111: 0 | L111: 0 | M111: 0 | N111: 0 | O111: 0 | P111: 0 | Q111: 0 | R111: 0 | S111: 0 | T111: 0 | U111: 0 | V111: 0 | W111: 0
E112: 0 | G112: 0 | I112: 0 | J112: 0 | K112: 0 | L112: 0 | M112: 0 | N112: 0 | O112: 0 | P112: 0 | Q112: 0 | R112: 0 | S112: 0 | T112: 0 | U112: 0 | V112: 0 | W112: 0
E113: 0 | G113: 0 | I113: 0 | J113: 0 | K113: 0 | L113: 0 | M113: 0 | N113: 0 | O113: 0 | P113: 0 | Q113: 0 | R113: 0 | S113: 0 | T113: 0 | U113: 0 | V113: 0 | W113: 0
E114: 0 | G114: 0 | I114: 0 | J114: 0 | K114: 0 | L114: 0 | M114: 0 | N114: 0 | O114: 0 | P114: 0 | Q114: 0 | R114: 0 | S114: 0 | T114: 0 | U114: 0 | V114: 0 | W114: 0
E115: 0 | G115: 0 | I115: 0 | J115: 0 | K115: 0 | L115: 0 | M115: 0 | N115: 0 | O115: 0 | P115: 0 | Q115: 0 | R115: 0 | S115: 0 | T115: 0 | U115: 0 | V115: 0 | W115: 0
E116: 0 | G116: 0 | I116: 0 | J116: 0 | K116: 0 | L116: 0 | M116: 0 | N116: 0 | O116: 0 | P116: 0 | Q116: 0 | R116: 0 | S116: 0 | T116: 0 | U116: 0 | V116: 0 | W116: 0
E117: 0 | G117: 0 | I117: 0 | J117: 0 | K117: 0 | L117: 0 | M117: 0 | N117: 0 | O117: 0 | P117: 0 | Q117: 0 | R117: 0 | S117: 0 | T117: 0 | U117: 0 | V117: 0 | W117: 0
E118: 0 | G118: 0 | I118: 0 | J118: 0 | K118: 0 | L118: 0 | M118: 0 | N118: 0 | O118: 0 | P118: 0 | Q118: 0 | R118: 0 | S118: 0 | T118: 0 | U118: 0 | V118: 0 | W118: 0
E119: 0 | G119: 0 | I119: 0 | J119: 0 | K119: 0 | L119: 0 | M119: 0 | N119: 0 | O119: 0 | P119: 0 | Q119: 0 | R119: 0 | S119: 0 | T119: 0 | U119: 0 | V119: 0 | W119: 0
E120: 0 | G120: 0 | I120: 0 | J120: 0 | K120: 0 | L120: 0 | M120: 0 | N120: 0 | O120: 0 | P120: 0 | Q120: 0 | R120: 0 | S120: 0 | T120: 0 | U120: 0 | V120: 0 | W120: 0
E121: 0 | G121: 0 | I121: 0 | J121: 0 | K121: 0 | L121: 0 | M121: 0 | N121: 0 | O121: 0 | P121: 0 | Q121: 0 | R121: 0 | S121: 0 | T121: 0 | U121: 0 | V121: 0 | W121: 0
E122: 0 | G122: 0 | I122: 0 | J122: 0 | K122: 0 | L122: 0 | M122: 0 | N122: 0 | O122: 0 | P122: 0 | Q122: 0 | R122: 0 | S122: 0 | T122: 0 | U122: 0 | V122: 0 | W122: 0
E123: 0 | G123: 0 | I123: 0 | J123: 0 | K123: 0 | L123: 0 | M123: 0 | N123: 0 | O123: 0 | P123: 0 | Q123: 0 | R123: 0 | S123: 0 | T123: 0 | U123: 0 | V123: 0 | W123: 0
E124: 0 | G124: 0 | I124: 0 | J124: 0 | K124: 0 | L124: 0 | M124: 0 | N124: 0 | O124: 0 | P124: 0 | Q124: 0 | R124: 0 | S124: 0 | T124: 0 | U124: 0 | V124: 0 | W124: 0
E125: 0 | G125: 0 | I125: 0 | J125: 0 | K125: 0 | L125: 0 | M125: 0 | N125: 0 | O125: 0 | P125: 0 | Q125: 0 | R125: 0 | S125: 0 | T125: 0 | U125: 0 | V125: 0 | W125: 0
E126: 0 | G126: 0 | I126: 0 | J126: 0 | K126: 0 | L126: 0 | M126: 0 | N126: 0 | O126: 0 | P126: 0 | Q126: 0 | R126: 0 | S126: 0 | T126: 0 | U126: 0 | V126: 0 | W126: 0
E127: 0 | G127: 0 | I127: 0 | J127: 0 | K127: 0 | L127: 0 | M127: 0 | N127: 0 | O127: 0 | P127: 0 | Q127: 0 | R127: 0 | S127: 0 | T127: 0 | U127: 0 | V127: 0 | W127: 0
E128: 0 | G128: 0 | I128: 0 | J128: 0 | K128: 0 | L128: 0 | M128: 0 | N128: 0 | O128: 0 | P128: 0 | Q128: 0 | R128: 0 | S128: 0 | T128: 0 | U128: 0 | V128: 0 | W128: 0
E129: 0 | G129: 0 | I129: 0 | J129: 0 | K129: 0 | L129: 0 | M129: 0 | N129: 0 | O129: 0 | P129: 0 | Q129: 0 | R129: 0 | S129: 0 | T129: 0 | U129: 0 | V129: 0 | W129: 0
E130: 0 | G130: 0 | I130: 0 | J130: 0 | K130: 0 | L130: 0 | M130: 0 | N130: 0 | O130: 0 | P130: 0 | Q130: 0 | R130: 0 | S130: 0 | T130: 0 | U130: 0 | V130: 0 | W130: 0
E131: =I131+J131+K131+L131+M131+N131+O131+P131+Q131+R131+S131+T131+U131+V131+W131 -> 0 | G131: =INDEX(I131:W131,MATCH(LARGE(I131:W131,COUNTIF(I131:W131,">="&0)),I131:W131,0)) -> 0 | I131: =SUMIF($X$3:$X$59,$D131,$Y$3:$Y$59) -> 0 | J131: =SUMIF($Z$3:$Z$42,$D131,$AA$3:$AA$42) -> 0 | K131: =SUMIF($AB$3:$AB$42,$D131,$AC$3:$AC$42) -> 0 | L131: =SUMIF($AD$3:$AD$42,$D131,$AE$3:$AE$42) -> 0 | M131: =SUMIF($AF$3:$AF$42,$D131,$AG$3:$AG$42) -> 0 | N131: =SUMIF($AH$3:$AH$42,$D131,$AI$3:$AI$42) -> 0 | O131: =SUMIF($AJ$3:$AJ$42,$D131,$AK$3:$AK$42) -> 0 | P131: =SUMIF($AL$3:$AL$42,$D131,$AM$3:$AM$42) -> 0 | Q131: =SUMIF(AN$3:AN$42,$D131,AO$3:AO$42) -> 0 | R131: =SUMIF(AP$3:AP$42,$D131,AQ$3:AQ$42) -> 0 | S131: =SUMIF(AR$3:AR$42,$D131,AS$3:AS$42) -> 0 | T131: =SUMIF(AT$3:AT$42,$D131,AU$3:AU$42) -> 0 | U131: =SUMIF(AV$3:AV$42,$D131,AW$3:AW$42) -> 0 | V131: =SUMIF(AX$3:AX$42,$D131,AY$3:AY$42) -> 0 | W131: =SUMIF(AZ$3:AZ$42,$D131,BA$3:BA$42) -> 0
E132: 0 | G132: 0 | I132: 0 | J132: 0 | K132: 0 | L132: 0 | M132: 0 | N132: 0 | O132: 0 | P132: 0 | Q132: 0 | R132: 0 | S132: 0 | T132: 0 | U132: 0 | V132: 0 | W132: 0
E133: 0 | G133: 0 | I133: 0 | J133: 0 | K133: 0 | L133: 0 | M133: 0 | N133: 0 | O133: 0 | P133: 0 | Q133: 0 | R133: 0 | S133: 0 | T133: 0 | U133: 0 | V133: 0 | W133: 0
E134: 0 | G134: 0 | I134: 0 | J134: 0 | K134: 0 | L134: 0 | M134: 0 | N134: 0 | O134: 0 | P134: 0 | Q134: 0 | R134: 0 | S134: 0 | T134: 0 | U134: 0 | V134: 0 | W134: 0
E135: 0 | G135: 0 | I135: 0 | J135: 0 | K135: 0 | L135: 0 | M135: 0 | N135: 0 | O135: 0 | P135: 0 | Q135: 0 | R135: 0 | S135: 0 | T135: 0 | U135: 0 | V135: 0 | W135: 0
E136: 0 | G136: 0 | I136: 0 | J136: 0 | K136: 0 | L136: 0 | M136: 0 | N136: 0 | O136: 0 | P136: 0 | Q136: 0 | R136: 0 | S136: 0 | T136: 0 | U136: 0 | V136: 0 | W136: 0
E137: 0 | G137: 0 | I137: 0 | J137: 0 | K137: 0 | L137: 0 | M137: 0 | N137: 0 | O137: 0 | P137: 0 | Q137: 0 | R137: 0 | S137: 0 | T137: 0 | U137: 0 | V137: 0 | W137: 0
E138: 0 | G138: 0 | I138: 0 | J138: 0 | K138: 0 | L138: 0 | M138: 0 | N138: 0 | O138: 0 | P138: 0 | Q138: 0 | R138: 0 | S138: 0 | T138: 0 | U138: 0 | V138: 0 | W138: 0
E139: 0 | G139: 0 | I139: 0 | J139: 0 | K139: 0 | L139: 0 | M139: 0 | N139: 0 | O139: 0 | P139: 0 | Q139: 0 | R139: 0 | S139: 0 | T139: 0 | U139: 0 | V139: 0 | W139: 0
E140: 0 | G140: 0 | I140: 0 | J140: 0 | K140: 0 | L140: 0 | M140: 0 | N140: 0 | O140: 0 | P140: 0 | Q140: 0 | R140: 0 | S140: 0 | T140: 0 | U140: 0 | V140: 0 | W140: 0
E141: 0 | G141: 0 | I141: 0 | J141: 0 | K141: 0 | L141: 0 | M141: 0 | N141: 0 | O141: 0 | P141: 0 | Q141: 0 | R141: 0 | S141: 0 | T141: 0 | U141: 0 | V141: 0 | W141: 0
E142: 0 | G142: 0 | I142: 0 | J142: 0 | K142: 0 | L142: 0 | M142: 0 | N142: 0 | O142: 0 | P142: 0 | Q142: 0 | R142: 0 | S142: 0 | T142: 0 | U142: 0 | V142: 0 | W142: 0
E143: 0 | G143: 0 | I143: 0 | J143: 0 | K143: 0 | L143: 0 | M143: 0 | N143: 0 | O143: 0 | P143: 0 | Q143: 0 | R143: 0 | S143: 0 | T143: 0 | U143: 0 | V143: 0 | W143: 0
E144: 0 | G144: 0 | I144: 0 | J144: 0 | K144: 0 | L144: 0 | M144: 0 | N144: 0 | O144: 0 | P144: 0 | Q144: 0 | R144: 0 | S144: 0 | T144: 0 | U144: 0 | V144: 0 | W144: 0
E145: 0 | G145: 0 | I145: 0 | J145: 0 | K145: 0 | L145: 0 | M145: 0 | N145: 0 | O145: 0 | P145: 0 | Q145: 0 | R145: 0 | S145: 0 | T145: 0 | U145: 0 | V145: 0 | W145: 0
E146: 0 | G146: 0 | I146: 0 | J146: 0 | K146: 0 | L146: 0 | M146: 0 | N146: 0 | O146: 0 | P146: 0 | Q146: 0 | R146: 0 | S146: 0 | T146: 0 | U146: 0 | V146: 0 | W146: 0
E147: 0 | G147: 0 | I147: 0 | J147: 0 | K147: 0 | L147: 0 | M147: 0 | N147: 0 | O147: 0 | P147: 0 | Q147: 0 | R147: 0 | S147: 0 | T147: 0 | U147: 0 | V147: 0 | W147: 0
E148: 0 | G148: 0 | I148: 0 | J148: 0 | K148: 0 | L148: 0 | M148: 0 | N148: 0 | O148: 0 | P148: 0 | Q148: 0 | R148: 0 | S148: 0 | T148: 0 | U148: 0 | V148: 0 | W148: 0
E149: 0 | G149: 0 | I149: 0 | J149: 0 | K149: 0 | L149: 0 | M149: 0 | N149: 0 | O149: 0 | P149: 0 | Q149: 0 | R149: 0 | S149: 0 | T149: 0 | U149: 0 | V149: 0 | W149: 0
E150: 0 | G150: 0 | I150: 0 | J150: 0 | K150: 0 | L150: 0 | M150: 0 | N150: 0 | O150: 0 | P150: 0 | Q150: 0 | R150: 0 | S150: 0 | T150: 0 | U150: 0 | V150: 0 | W150: 0
E151: 0 | G151: 0 | I151: 0 | J151: 0 | K151: 0 | L151: 0 | M151: 0 | N151: 0 | O151: 0 | P151: 0 | Q151: 0 | R151: 0 | S151: 0 | T151: 0 | U151: 0 | V151: 0 | W151: 0
E152: 0 | G152: 0 | I152: 0 | J152: 0 | K152: 0 | L152: 0 | M152: 0 | N152: 0 | O152: 0 | P152: 0 | Q152: 0 | R152: 0 | S152: 0 | T152: 0 | U152: 0 | V152: 0 | W152: 0
E153: 0 | G153: 0 | I153: 0 | J153: 0 | K153: 0 | L153: 0 | M153: 0 | N153: 0 | O153: 0 | P153: 0 | Q153: 0 | R153: 0 | S153: 0 | T153: 0 | U153: 0 | V153: 0 | W153: 0
E154: 0 | G154: 0 | I154: 0 | J154: 0 | K154: 0 | L154: 0 | M154: 0 | N154: 0 | O154: 0 | P154: 0 | Q154: 0 | R154: 0 | S154: 0 | T154: 0 | U154: 0 | V154: 0 | W154: 0
E155: 0 | G155: 0 | I155: 0 | J155: 0 | K155: 0 | L155: 0 | M155: 0 | N155: 0 | O155: 0 | P155: 0 | Q155: 0 | R155: 0 | S155: 0 | T155: 0 | U155: 0 | V155: 0 | W155: 0
E156: 0 | G156: 0 | I156: 0 | J156: 0 | K156: 0 | L156: 0 | M156: 0 | N156: 0 | O156: 0 | P156: 0 | Q156: 0 | R156: 0 | S156: 0 | T156: 0 | U156: 0 | V156: 0 | W156: 0
E157: 0 | G157: 0 | I157: 0 | J157: 0 | K157: 0 | L157: 0 | M157: 0 | N157: 0 | O157: 0 | P157: 0 | Q157: 0 | R157: 0 | S157: 0 | T157: 0 | U157: 0 | V157: 0 | W157: 0
E158: 0 | G158: 0 | I158: 0 | J158: 0 | K158: 0 | L158: 0 | M158: 0 | N158: 0 | O158: 0 | P158: 0 | Q158: 0 | R158: 0 | S158: 0 | T158: 0 | U158: 0 | V158: 0 | W158: 0
E159: 0 | G159: 0 | I159: 0 | J159: 0 | K159: 0 | L159: 0 | M159: 0 | N159: 0 | O159: 0 | P159: 0 | Q159: 0 | R159: 0 | S159: 0 | T159: 0 | U159: 0 | V159: 0 | W159: 0
E160: 0 | G160: 0 | I160: 0 | J160: 0 | K160: 0 | L160: 0 | M160: 0 | N160: 0 | O160: 0 | P160: 0 | Q160: 0 | R160: 0 | S160: 0 | T160: 0 | U160: 0 | V160: 0 | W160: 0
E161: 0 | G161: 0 | I161: 0 | J161: 0 | K161: 0 | L161: 0 | M161: 0 | N161: 0 | O161: 0 | P161: 0 | Q161: 0 | R161: 0 | S161: 0 | T161: 0 | U161: 0 | V161: 0 | W161: 0
E162: 0 | G162: 0 | I162: 0 | J162: 0 | K162: 0 | L162: 0 | M162: 0 | N162: 0 | O162: 0 | P162: 0 | Q162: 0 | R162: 0 | S162: 0 | T162: 0 | U162: 0 | V162: 0 | W162: 0
E163: =I163+J163+K163+L163+M163+N163+O163+P163+Q163+R163+S163+T163+U163+V163+W163 -> 0 | G163: =INDEX(I163:W163,MATCH(LARGE(I163:W163,COUNTIF(I163:W163,">="&0)),I163:W163,0)) -> 0 | I163: =SUMIF($X$3:$X$59,$D163,$Y$3:$Y$59) -> 0 | J163: =SUMIF($Z$3:$Z$42,$D163,$AA$3:$AA$42) -> 0 | K163: =SUMIF($AB$3:$AB$42,$D163,$AC$3:$AC$42) -> 0 | L163: =SUMIF($AD$3:$AD$42,$D163,$AE$3:$AE$42) -> 0 | M163: =SUMIF($AF$3:$AF$42,$D163,$AG$3:$AG$42) -> 0 | N163: =SUMIF($AH$3:$AH$42,$D163,$AI$3:$AI$42) -> 0 | O163: =SUMIF($AJ$3:$AJ$42,$D163,$AK$3:$AK$42) -> 0 | P163: =SUMIF($AL$3:$AL$42,$D163,$AM$3:$AM$42) -> 0 | Q163: =SUMIF(AN$3:AN$42,$D163,AO$3:AO$42) -> 0 | R163: =SUMIF(AP$3:AP$42,$D163,AQ$3:AQ$42) -> 0 | S163: =SUMIF(AR$3:AR$42,$D163,AS$3:AS$42) -> 0 | T163: =SUMIF(AT$3:AT$42,$D163,AU$3:AU$42) -> 0 | U163: =SUMIF(AV$3:AV$42,$D163,AW$3:AW$42) -> 0 | V163: =SUMIF(AX$3:AX$42,$D163,AY$3:AY$42) -> 0 | W163: =SUMIF(AZ$3:AZ$42,$D163,BA$3:BA$42) -> 0
E164: 0 | G164: 0 | I164: 0 | J164: 0 | K164: 0 | L164: 0 | M164: 0 | N164: 0 | O164: 0 | P164: 0 | Q164: 0 | R164: 0 | S164: 0 | T164: 0 | U164: 0 | V164: 0 | W164: 0
E165: 0 | G165: 0 | I165: 0 | J165: 0 | K165: 0 | L165: 0 | M165: 0 | N165: 0 | O165: 0 | P165: 0 | Q165: 0 | R165: 0 | S165: 0 | T165: 0 | U165: 0 | V165: 0 | W165: 0
E166: 0 | G166: 0 | I166: 0 | J166: 0 | K166: 0 | L166: 0 | M166: 0 | N166: 0 | O166: 0 | P166: 0 | Q166: 0 | R166: 0 | S166: 0 | T166: 0 | U166: 0 | V166: 0 | W166: 0
E167: 0 | G167: 0 | I167: 0 | J167: 0 | K167: 0 | L167: 0 | M167: 0 | N167: 0 | O167: 0 | P167: 0 | Q167: 0 | R167: 0 | S167: 0 | T167: 0 | U167: 0 | V167: 0 | W167: 0
E168: 0 | G168: 0 | I168: 0 | J168: 0 | K168: 0 | L168: 0 | M168: 0 | N168: 0 | O168: 0 | P168: 0 | Q168: 0 | R168: 0 | S168: 0 | T168: 0 | U168: 0 | V168: 0 | W168: 0
E169: 0 | G169: 0 | I169: 0 | J169: 0 | K169: 0 | L169: 0 | M169: 0 | N169: 0 | O169: 0 | P169: 0 | Q169: 0 | R169: 0 | S169: 0 | T169: 0 | U169: 0 | V169: 0 | W169: 0
E170: 0 | G170: 0 | I170: 0 | J170: 0 | K170: 0 | L170: 0 | M170: 0 | N170: 0 | O170: 0 | P170: 0 | Q170: 0 | R170: 0 | S170: 0 | T170: 0 | U170: 0 | V170: 0 | W170: 0
E171: 0 | G171: 0 | I171: 0 | J171: 0 | K171: 0 | L171: 0 | M171: 0 | N171: 0 | O171: 0 | P171: 0 | Q171: 0 | R171: 0 | S171: 0 | T171: 0 | U171: 0 | V171: 0 | W171: 0
E172: 0 | G172: 0 | I172: 0 | J172: 0 | K172: 0 | L172: 0 | M172: 0 | N172: 0 | O172: 0 | P172: 0 | Q172: 0 | R172: 0 | S172: 0 | T172: 0 | U172: 0 | V172: 0 | W172: 0
E173: 0 | G173: 0 | I173: 0 | J173: 0 | K173: 0 | L173: 0 | M173: 0 | N173: 0 | O173: 0 | P173: 0 | Q173: 0 | R173: 0 | S173: 0 | T173: 0 | U173: 0 | V173: 0 | W173: 0
E174: 0 | G174: 0 | I174: 0 | J174: 0 | K174: 0 | L174: 0 | M174: 0 | N174: 0 | O174: 0 | P174: 0 | Q174: 0 | R174: 0 | S174: 0 | T174: 0 | U174: 0 | V174: 0 | W174: 0
E175: 0 | G175: 0 | I175: 0 | J175: 0 | K175: 0 | L175: 0 | M175: 0 | N175: 0 | O175: 0 | P175: 0 | Q175: 0 | R175: 0 | S175: 0 | T175: 0 | U175: 0 | V175: 0 | W175: 0
E176: 0 | G176: 0 | I176: 0 | J176: 0 | K176: 0 | L176: 0 | M176: 0 | N176: 0 | O176: 0 | P176: 0 | Q176: 0 | R176: 0 | S176: 0 | T176: 0 | U176: 0 | V176: 0 | W176: 0
E177: 0 | G177: 0 | I177: 0 | J177: 0 | K177: 0 | L177: 0 | M177: 0 | N177: 0 | O177: 0 | P177: 0 | Q177: 0 | R177: 0 | S177: 0 | T177: 0 | U177: 0 | V177: 0 | W177: 0
E178: 0 | G178: 0 | I178: 0 | J178: 0 | K178: 0 | L178: 0 | M178: 0 | N178: 0 | O178: 0 | P178: 0 | Q178: 0 | R178: 0 | S178: 0 | T178: 0 | U178: 0 | V178: 0 | W178: 0
E179: 0 | G179: 0 | I179: 0 | J179: 0 | K179: 0 | L179: 0 | M179: 0 | N179: 0 | O179: 0 | P179: 0 | Q179: 0 | R179: 0 | S179: 0 | T179: 0 | U179: 0 | V179: 0 | W179: 0
E180: 0 | G180: 0 | I180: 0 | J180: 0 | K180: 0 | L180: 0 | M180: 0 | N180: 0 | O180: 0 | P180: 0 | Q180: 0 | R180: 0 | S180: 0 | T180: 0 | U180: 0 | V180: 0 | W180: 0
E181: 0 | G181: 0 | I181: 0 | J181: 0 | K181: 0 | L181: 0 | M181: 0 | N181: 0 | O181: 0 | P181: 0 | Q181: 0 | R181: 0 | S181: 0 | T181: 0 | U181: 0 | V181: 0 | W181: 0
E182: 0 | G182: 0 | I182: 0 | J182: 0 | K182: 0 | L182: 0 | M182: 0 | N182: 0 | O182: 0 | P182: 0 | Q182: 0 | R182: 0 | S182: 0 | T182: 0 | U182: 0 | V182: 0 | W182: 0
E183: 0 | G183: 0 | I183: 0 | J183: 0 | K183: 0 | L183: 0 | M183: 0 | N183: 0 | O183: 0 | P183: 0 | Q183: 0 | R183: 0 | S183: 0 | T183: 0 | U183: 0 | V183: 0 | W183: 0
E184: 0 | G184: 0 | I184: 0 | J184: 0 | K184: 0 | L184: 0 | M184: 0 | N184: 0 | O184: 0 | P184: 0 | Q184: 0 | R184: 0 | S184: 0 | T184: 0 | U184: 0 | V184: 0 | W184: 0
E185: 0 | G185: 0 | I185: 0 | J185: 0 | K185: 0 | L185: 0 | M185: 0 | N185: 0 | O185: 0 | P185: 0 | Q185: 0 | R185: 0 | S185: 0 | T185: 0 | U185: 0 | V185: 0 | W185: 0
E186: 0 | G186: 0 | I186: 0 | J186: 0 | K186: 0 | L186: 0 | M186: 0 | N186: 0 | O186: 0 | P186: 0 | Q186: 0 | R186: 0 | S186: 0 | T186: 0 | U186: 0 | V186: 0 | W186: 0
E187: 0 | G187: 0 | I187: 0 | J187: 0 | K187: 0 | L187: 0 | M187: 0 | N187: 0 | O187: 0 | P187: 0 | Q187: 0 | R187: 0 | S187: 0 | T187: 0 | U187: 0 | V187: 0 | W187: 0
E188: 0 | G188: 0 | I188: 0 | J188: 0 | K188: 0 | L188: 0 | M188: 0 | N188: 0 | O188: 0 | P188: 0 | Q188: 0 | R188: 0 | S188: 0 | T188: 0 | U188: 0 | V188: 0 | W188: 0
E189: 0 | G189: 0 | I189: 0 | J189: 0 | K189: 0 | L189: 0 | M189: 0 | N189: 0 | O189: 0 | P189: 0 | Q189: 0 | R189: 0 | S189: 0 | T189: 0 | U189: 0 | V189: 0 | W189: 0
E190: 0 | G190: 0 | I190: 0 | J190: 0 | K190: 0 | L190: 0 | M190: 0 | N190: 0 | O190: 0 | P190: 0 | Q190: 0 | R190: 0 | S190: 0 | T190: 0 | U190: 0 | V190: 0 | W190: 0
E191: 0 | G191: 0 | I191: 0 | J191: 0 | K191: 0 | L191: 0 | M191: 0 | N191: 0 | O191: 0 | P191: 0 | Q191: 0 | R191: 0 | S191: 0 | T191: 0 | U191: 0 | V191: 0 | W191: 0
E192: 0 | G192: 0 | I192: 0 | J192: 0 | K192: 0 | L192: 0 | M192: 0 | N192: 0 | O192: 0 | P192: 0 | Q192: 0 | R192: 0 | S192: 0 | T192: 0 | U192: 0 | V192: 0 | W192: 0
E193: 0 | G193: 0 | I193: 0 | J193: 0 | K193: 0 | L193: 0 | M193: 0 | N193: 0 | O193: 0 | P193: 0 | Q193: 0 | R193: 0 | S193: 0 | T193: 0 | U193: 0 | V193: 0 | W193: 0
E194: 0 | G194: 0 | I194: 0 | J194: 0 | K194: 0 | L194: 0 | M194: 0 | N194: 0 | O194: 0 | P194: 0 | Q194: 0 | R194: 0 | S194: 0 | T194: 0 | U194: 0 | V194: 0 | W194: 0
E195: =I195+J195+K195+L195+M195+N195+O195+P195+Q195+R195+S195+T195+U195+V195+W195 -> 0 | G195: =INDEX(I195:W195,MATCH(LARGE(I195:W195,COUNTIF(I195:W195,">="&0)),I195:W195,0)) -> 0 | I195: =SUMIF($X$3:$X$59,$D195,$Y$3:$Y$59) -> 0 | J195: =SUMIF($Z$3:$Z$42,$D195,$AA$3:$AA$42) -> 0 | K195: =SUMIF($AB$3:$AB$42,$D195,$AC$3:$AC$42) -> 0 | L195: =SUMIF($AD$3:$AD$42,$D195,$AE$3:$AE$42) -> 0 | M195: =SUMIF($AF$3:$AF$42,$D195,$AG$3:$AG$42) -> 0 | N195: =SUMIF($AH$3:$AH$42,$D195,$AI$3:$AI$42) -> 0 | O195: =SUMIF($AJ$3:$AJ$42,$D195,$AK$3:$AK$42) -> 0 | P195: =SUMIF($AL$3:$AL$42,$D195,$AM$3:$AM$42) -> 0 | Q195: =SUMIF(AN$3:AN$42,$D195,AO$3:AO$42) -> 0 | R195: =SUMIF(AP$3:AP$42,$D195,AQ$3:AQ$42) -> 0 | S195: =SUMIF(AR$3:AR$42,$D195,AS$3:AS$42) -> 0 | T195: =SUMIF(AT$3:AT$42,$D195,AU$3:AU$42) -> 0 | U195: =SUMIF(AV$3:AV$42,$D195,AW$3:AW$42) -> 0 | V195: =SUMIF(AX$3:AX$42,$D195,AY$3:AY$42) -> 0 | W195: =SUMIF(AZ$3:AZ$42,$D195,BA$3:BA$42) -> 0
E196: 0 | G196: 0 | I196: 0 | J196: 0 | K196: 0 | L196: 0 | M196: 0 | N196: 0 | O196: 0 | P196: 0 | Q196: 0 | R196: 0 | S196: 0 | T196: 0 | U196: 0 | V196: 0 | W196: 0
E197: 0 | G197: 0 | I197: 0 | J197: 0 | K197: 0 | L197: 0 | M197: 0 | N197: 0 | O197: 0 | P197: 0 | Q197: 0 | R197: 0 | S197: 0 | T197: 0 | U197: 0 | V197: 0 | W197: 0
E198: 0 | G198: 0 | I198: 0 | J198: 0 | K198: 0 | L198: 0 | M198: 0 | N198: 0 | O198: 0 | P198: 0 | Q198: 0 | R198: 0 | S198: 0 | T198: 0 | U198: 0 | V198: 0 | W198: 0
E199: 0 | G199: 0 | I199: 0 | J199: 0 | K199: 0 | L199: 0 | M199: 0 | N199: 0 | O199: 0 | P199: 0 | Q199: 0 | R199: 0 | S199: 0 | T199: 0 | U199: 0 | V199: 0 | W199: 0
E200: 0 | G200: 0 | I200: 0 | J200: 0 | K200: 0 | L200: 0 | M200: 0 | N200: 0 | O200: 0 | P200: 0 | Q200: 0 | R200: 0 | S200: 0 | T200: 0 | U200: 0 | V200: 0 | W200: 0
... 1 more rows
